Workbook

Sheet Kalkulátor
B1: Ajánlatkészítő neve | F1: =IF(ISBLANK(C3),BaseData!$D$2,INDEX(BaseData!$D$2:$D$13,MATCH(Kalkulátor!C3,BaseData!$A$2:$A$13,0))) ->  | H1: =IF(ISBLANK(C3),Bubor,INDEX(Minősítés!$B$25:$M$25,MATCH(Kalkulátor!C3,Minősítés!$B$9:$M$9,0))) -> 0.0121
B2: Termék: | F2: =IF(ISBLANK(C3),BaseData!$E$2,IF(INDEX(BaseData!$E$2:$E$13,MATCH(Kalkulátor!C3,BaseData!$A$2:$A$13,0))=" "," ",INDEX(BaseData!$E$2:$E$13,MATCH(Kalkulátor!C3,BaseData!$A$2:$A$13,0)))) ->  | H2: =IFERROR(IF(F2=" "," ",BaseKamatfelár),"") -> 
B3: Termék: | C3: MagNet Stabil Ötös Lakáshitel | F3: Kedvezmények összesen | H3: =KedvValue -> 0
B4: Hitelcél: | C4: használt lakás / lakóház vásárlás | F4: Kamatláb (évi) (Kedvezménnyel csökkentett) | H4: =RealKamatláb -> 0.0471
B5: Kölcsön összege: | C5: 5000000 | F5: Törlesztőrészlet: | H5: =IF(Kalk!$B$35="Nem hitelezhető",Kalk!$B$35,IF(ISBLANK(PProduct),"",IF(Kalk!N8=0,IF(Installment=0,"",Installment),""))) -> 32380.62712 | J5: A pontosabb eredményért töltse ki a "Havi vállalt jóváírás összege" mezőt!
B6: Futamidő (év) | C6: 20 | F6: THM | H6: =IF(H5="","",IFERROR(POWER((IRR(Kalk!I1:I361,0.01)+1),12)-1,"")) -> 0.04912578319
B7: Folyósítási díj meghitelezésre kerül? | C7: Nem | F7: =IFERROR(IF(AND(C7="Igen",PProduct="MagNet CSOK + Lakáshitel"),"Ennél a terméknél a folyósítási díj nem hitelezhető meg!",""),"") -> 
B8: Tényleges Kölcsönösszeg | C8: =IF(AND(FolyYO="Igen",PProduct<>"MagNet CSOK + Lakáshitel"),LoanAmount+FolyDij,LoanAmount) -> 5000000 | I8: =IF(Kalk!$B$9>Kalk!$D$9,CONCATENATE("A feltüntetett kedvezmény nem vehető teljesen figyelembe",CHAR(10),"Maximum kedvezmény: ",TEXT(Kalk!$D$9,"0,0%"),"")) -> FALSE
B11: Kedvezmények
B12: Kölcsönösszeg és vállalt jóváírás utáni kedvezmény | C12: =Jóvirkedv -> 0 | F12: =IFERROR(IF(AND(C13="Igen",PProduct<>"MagNet CSOK + Lakáshitel"),CONCATENATE(B13,": Közösségi hatás legalább 65%, vagy csatlakozik a Mentor-Szféra Plusz Programhoz"),IF(AND(C13="Igen",PProduct="MagNet CSOK + Lakáshitel"),CONCATENATE("Ennél a terméknél a ",B13," nem vehető igénybe!"),"")),"") -> 
B13: "Közösségi ügyfél" kamatkedvezmény | C13: Nem
B14: Egyedi kedvezmény | C14: 0 | F14: =IFERROR(IF(AND(C14>0,PProduct="MagNet CSOK + Lakáshitel"),"Ennél a terméknél nincs lehetőség egyedi kedvezményre!",""),"") -> 
B15: Kampánykedvezményeket igénybe veszi? | C15: Igen | F15: =IFERROR(IF(AND(INDEX(BaseData!F2:F13,MATCH(PProduct,BaseData!A2:A13,0))="No",Kampany<>"Nem"),"Ehhez a termékhez nem vehető igénybe a kampánykedvezmény!",""),"") -> 
B17: Jövedelmi adatok
B18: Havi vállalt jóváírás összege | C18: 0 | F18: =IFERROR(IF(AND(C18="",PProduct<>"MagNet 10+10 Otthonteremtési Kamattámogatott Hitel"),"Írd be a vállalt jóváírást. Ha nem vállal, akkor írj be egy nullát (0)!",IF(AND(C18="",PProduct="MagNet 10+10 Otthonteremtési Kamattámogatott Hitel"),"Ennél a terméknél nincs szükség jóváírás vállalásra","")),"") -> 
B19: Igazolt havi nettó jövedelem összesen | C19: 0
B20: Levonások/letiltások összege (tartásdíj, bérelőleg stb) | C20: 0
B21: Már meglévő és fennmaradó hitelek törlesztő részlete összesen: | C21: 0
B22: Hitelkártya és folyószámlahitel keret összesen: | C22: 0
B24: Fedezeti adatok
B25: Ingatlan értéke | C25: 0
B26: Már meglévő és fennmaradó hitelek fennálló összege összesen: | C26: 0
B28: Személyes adatok
B29: Igénylő neve
B30: Lakcím
B31: Személyi igazolvány

Sheet KalkLap (hidden)
A1: Ajánlatkészítő neve | C1: =IF(Kalkulátor!C1="","",Kalkulátor!C1) -> 
A2: Kölcsönigénylő neve: | C2: =IF(Name="","",Name) -> 
A3: Kölcsönigénylő lakcíme: | C3: =IF(Address="","",Address) -> 
A4: Kalkuláció készítésének napja: | C4: =TODAY() -> 2020-01-30
A6: I. Kölcsönigénylő által megadott adatok:
A7: Kölcsön típusa: | C7: =IF(PProduct="","",PProduct) -> MagNet Stabil Ötös Lakáshitel
A8: Hitel célja: | C8: =IF(Dealgoal="","",Dealgoal) -> használt lakás / lakóház vásárlás
A9: Igényelt kölcsön összege: | C9: =IF(RealLoanAmount="","",RealLoanAmount) -> 5000000
A10: Futamidő: | C10: =IF(Tenor="","",Tenor*12) -> 240
A11: A hitelösszeg tartalmazza a folyósítási díjat? (Meghitelezett?) | C11: =IF(FolyYO="","",FolyYO) -> Nem
A13: “Közösségi ügyfél” kamatkedvezmény: | C13: =IF(KKedv="","",KKedv) -> Nem
A16: II. Jövedelmi adatok
A17: Havi nettó jövedelem összesen: | C17: =IF(Income="","",Income-LevLet) -> 0
A18: Meglévő hitelek törlesztő részlete összesen: | C18: =IF(AND(ExistingInst=0,OD_CC=0),0,ExistingInst+(OD_CC*0.05)) -> 0
A20: III. Fedezeti adatok
A21: Ingatlan vételára/Vélelmezett ingatlan(ok) értéke: | C21: =IF(CollValue="","",CollValue) -> 0
A23: IV. A kalkuláció eredménye:
A24: Minősítés eredménye: | C24: =Minosites -> 
A25: Alapkamat: | C25: =IF(OR(PProduct="MagNet Lakáshitel",PProduct="MagNet Új Társasházi Lakáshitel",PProduct="MagNet Jelzáloghitel"),Base_Rate,"Nincs") -> Nincs
A26: Kamatfelár: | C26: =IF(OR(PProduct="MagNet Lakáshitel",PProduct="MagNet Új Társasházi Lakáshitel",PProduct="MagNet Jelzáloghitel"),BaseKamatfelár,BaseKamatfelár+Base_Rate) -> 0.0471
A27: Kedvezmények összesen: | C27: =KedvValue -> 0
B29: Havi jóváírás alapján nyújtott kamatkedvezmény: | C29: =Jóvirkedv -> 0
B30: “Közösségi ügyfél” kamatkedvezmény: | C30: =Kalk!B7 -> 0
A31: Kedvezménnyel csökkentett ügyleti kamat (évi): | C31: =RealKamatláb -> 0.0471
A32: THM1 | C32: =Kalkulátor!H6 -> 0.04912578319
A33: Törlesztőrészlet: | C33: =Installment -> 32380.62712
A35: 1A THM meghatározása az aktuális feltételek, illetve a hatályos jogszabályok figyelembevételével történt és a feltételek változása esetén mértéke módosulhat. A THM mutató értéke nem tükrözi a hitel kamatkockázatát.
A36: Az itt közölt előzetes eredmény a kölcsönigénylő által megadott adatok alapján készült, nem teljeskörű és kizárólag tájékoztató jellegű, továbbá nem tekinthető a MagNet Bank konkrét, Ptk. 6:64.§-a szerinti szerződéses ajánlatának, vagy egyéb kötelezettségvállalásának. A Bank a kölcsönkérelem és kérelem befogadásához előírt dokumentumok hiánytalan benyújtását követően minden esetben a saját hitelbírálati feltételei szerint egyedi hitelbírálatot végez, amelynek eredményéről írásban értesíti a kölcsönigénylőt.
A37: Jelen Adatlapot a kölcsönigénylő kérelmére állítottuk ki, 1 (egy) eredeti példányban. A termékre vonatkozó részletes feltételeket a Bank mindenkor hatályos, a fogyasztónak nyújtott hitel általános szerződési feltételeiről szóló Üzletszabályzata és fogyasztók részére nyújtott, igényelhető hitelek kamatairól, alkalmazott díjairól, és költségeiről szóló Hirdetménye tartalmazza. A Bank fenntartja a feltételek egyoldalú módosításának jogát.
A39: =CONCATENATE("Kelt: Budapest, ",TEXT(TODAY(),"éééé.hh.nn")) -> Kelt: Budapest, 2020.01.30 | C39: MagNet Bank Zrt.

Sheet Minősítés (hidden)
A1: Jóváírás | B1: Kölcsönösszeg | F1: JTM Buboros | G1: LTV kategória | K1: JTM 5 éves | L1: LTV kategória | P1: JTM 10 éves | Q1: LTV kategória | U1: LTV
A2: 0 | B2: 8000000 | C2: 20000000 | D2: 1000000000 | F2: 0 | G2: 0.25 | H2: 0.5 | I2: 10 | K2: 0 | L2: 0.25 | M2: 0.5 | N2: 10 | P2: 0 | Q2: 0.25 | R2: 0.5 | S2: 10 | U2: 0
A3: 100000 | B3: A1 | C3: A2 | D3: A3 | F3: 0.075 | G3: A1 | H3: A2 | I3: A3 | K3: 0.1099999999 | L3: A1 | M3: A2 | N3: A3 | P3: 0.149999999 | Q3: A1 | R3: A2 | S3: A3 | U3: 0.25 | V3: 1
A4: 300000 | B4: B1 | C4: B2 | D4: B3 | F4: 0.1749999999 | G4: B1 | H4: B2 | I4: B3 | K4: 0.249999999 | L4: B1 | M4: B2 | N4: B3 | P4: 0.349999999 | Q4: B1 | R4: B2 | S4: B3 | U4: 0.5 | V4: 2
A5: 500000 | B5: C1 | C5: C2 | D5: C3 | F5: 10 | G5: C1 | H5: C2 | I5: C3 | K5: 10 | L5: C1 | M5: C2 | N5: C3 | P5: 10 | Q5: C1 | R5: C2 | S5: C3 | V5: 3
A6: 1000000000 | B6: D1 | C6: D2 | D6: D3
B9: MagNet Lakáshitel | C9: MagNet Új Társasházi Lakáshitel | D9: MagNet Stabil Ötös Lakáshitel | E9: MagNet Stabil Ötös Új Társasházi Lakáshitel | F9: MagNet Jelzáloghitel | G9: MagNet Stabil Ötös Kiváltó hitel | H9: MagNet Stabil Ötös Jelzáloghitel | I9: MagNet CSOK + Lakáshitel | J9: MagNet Stabil Tízes Lakáshitel | K9: MagNet Stabil Tízes Új Társasházi Lakáshitel | L9: MagNet Stabil Tízes Kiváltó hitel | M9: MagNet Stabil Tízes Jelzáloghitel
A10: A1 | B10: 0.0425 | C10: 0.0425 | D10: 0.035 | E10: 0.035 | F10: 0.0525 | G10: 0.04 | H10: 0.045 | I10: 0.03 | J10: 0.035 | K10: 0.035 | L10: 0.04 | M10: 0.045
A11: A2 | B11: 0.0375 | C11: 0.0375 | D11: 0.03 | E11: 0.03 | F11: 0.0475 | G11: 0.035 | H11: 0.04 | I11: 0.03 | J11: 0.03 | K11: 0.03 | L11: 0.035 | M11: 0.04
A12: A3 | B12: 0.0325 | C12: 0.0325 | D12: 0.025 | E12: 0.025 | F12: 0.0425 | G12: 0.03 | H12: 0.035 | I12: 0.03 | J12: 0.025 | K12: 0.025 | L12: 0.03 | M12: 0.035
A13: B1 | B13: 0.0375 | C13: 0.0375 | D13: 0.03 | E13: 0.03 | F13: 0.0475 | G13: 0.035 | H13: 0.04 | I13: 0.03 | J13: 0.03 | K13: 0.03 | L13: 0.035 | M13: 0.04
A14: B2 | B14: 0.0325 | C14: 0.0325 | D14: 0.025 | E14: 0.025 | F14: 0.0425 | G14: 0.03 | H14: 0.035 | I14: 0.03 | J14: 0.025 | K14: 0.025 | L14: 0.03 | M14: 0.035
A15: B3 | B15: 0.03 | C15: 0.03 | D15: 0.0225 | E15: 0.0225 | F15: 0.04 | G15: 0.0275 | H15: 0.0325 | I15: 0.03 | J15: 0.0225 | K15: 0.0225 | L15: 0.0275 | M15: 0.0325
A16: C1 | B16: 0.0325 | C16: 0.0325 | D16: 0.025 | E16: 0.025 | F16: 0.0425 | G16: 0.03 | H16: 0.035 | I16: 0.03 | J16: 0.025 | K16: 0.025 | L16: 0.03 | M16: 0.035
A17: C2 | B17: 0.028 | C17: 0.028 | D17: 0.02 | E17: 0.02 | F17: 0.038 | G17: 0.0255 | H17: 0.0305 | I17: 0.03 | J17: 0.017 | K17: 0.017 | L17: 0.0255 | M17: 0.0305
A18: C3 | B18: 0.0265 | C18: 0.0265 | D18: 0.019 | E18: 0.019 | F18: 0.0365 | G18: 0.024 | H18: 0.029 | I18: 0.03 | J18: 0.0165 | K18: 0.0165 | L18: 0.024 | M18: 0.029
A19: D1 | B19: 0.03 | C19: 0.03 | D19: 0.0225 | E19: 0.0225 | F19: 0.04 | G19: 0.0275 | H19: 0.0325 | I19: 0.03 | J19: 0.0225 | K19: 0.0225 | L19: 0.0275 | M19: 0.0325
A20: D2 | B20: 0.0265 | C20: 0.0265 | D20: 0.018 | E20: 0.018 | F20: 0.0365 | G20: 0.024 | H20: 0.029 | I20: 0.03 | J20: 0.0155 | K20: 0.0155 | L20: 0.024 | M20: 0.029
A21: D3 | B21: 0.025 | C21: 0.025 | D21: 0.0175 | E21: 0.0175 | F21: 0.035 | G21: 0.0225 | H21: 0.0275 | I21: 0.03 | J21: 0.015 | K21: 0.015 | L21: 0.0225 | M21: 0.0275
A22: Minimum kamatfelár | B22: 0.02 | C22: 0.02 | D22: 0.015 | E22: 0.015 | F22: 0.02 | G22: 0.015 | H22: 0.015 | I22: 0.03 | J22: 0.015 | K22: 0.015 | L22: 0.015 | M22: 0.015
A23: Folyósítási díj % | B23: 0.01 | C23: 0.01 | D23: 0.0075 | E23: 0.0075 | F23: 0.01 | G23: 0.0075 | H23: 0.0075 | I23: 0.01 | J23: 0.0075 | K23: 0.0075 | L23: 0.0075 | M23: 0.0075
A24: Folyósítási díj max | B24: 200000 | C24: 200000 | D24: 150000 | E24: 150000 | F24: 200000 | G24: 150000 | H24: 150000 | I24: 200000 | J24: 150000 | K24: 150000 | L24: 150000 | M24: 150000
A25: Base_Rate | B25: =Bubor -> 0.0027 | C25: =Bubor -> 0.0027 | D25: =_5Y -> 0.0121 | E25: =_5Y -> 0.0121 | F25: =Bubor -> 0.0027 | G25: =_5Y -> 0.0121 | H25: =_5Y -> 0.0121 | J25: =_10Y -> 0.02 | K25: =_10Y -> 0.02 | L25: =_10Y -> 0.02 | M25: =_10Y -> 0.02
A28: JTM

Sheet BaseData (hidden)
A1: Product | B1: Hitelcél lista | C1: Tenor | D1: Alap | E1: Kamatfelár | F1: Kampány | G1: Kamat | H1: Folyósítási díj | I1: Folyósítási díj max | J1: 400000 | K1: 100000000 | L1: FolyDíj | M1: DealGoal_HOU | N1: DealGoal_HQ | O1: DealGoal_OTK | P1: Yes_Or_No | Q1: 4 | R1: 4 | S1: 10
A2: MagNet Lakáshitel | B2: DealGoal_HOU | C2: Bubor_Tenor | D2: Alapkamat (BUBOR) | E2: Kamatfelár | F2: Yes_Or_No | G2: =Kalk!B1 -> 0.0027 | H2: 0.01 | I2: 200000 | J2: 0.25 | K2: 0.3 | L2: =LoanAmount*H2 -> 50000 | M2: új lakás / lakóház vásárlás | N2: szabad felhasználás | O2: új lakás / lakóház vásárlás | P2: Igen | Q2: 5 | R2: 5 | S2: 20
A3: MagNet Új Társasházi Lakáshitel | B3: DealGoal_Tars | C3: Bubor_Tenor | D3: Alapkamat (BUBOR) | E3: Kamatfelár | F3: No | G3: =G2 -> 0.0027 | H3: 0.01 | I3: 200000 | J3: 0.25 | K3: 0.3 | L3: 50000 | M3: használt lakás / lakóház vásárlás | N3: nem lakáscélú hitel kiváltása | O3: használt lakás / lakóház vásárlás | P3: Nem | Q3: 6 | R3: 6 | S3: 30
A4: MagNet Stabil Ötös Lakáshitel | B4: DealGoal_HOU | C4: Bubor_Tenor | F4: Yes_Or_No | H4: 0.0075 | I4: 150000 | J4: 0.35 | K4: 0.4 | L4: 37500 | M4: felújítás | O4: új társasházi lakás (MagNet projektfinanszírozás) | Q4: 7 | R4: 7
A5: MagNet Stabil Ötös Új Társasházi Lakáshitel | B5: DealGoal_Tars | C5: Bubor_Tenor | F5: No | H5: 0.0075 | I5: 150000 | J5: 0.35 | K5: 0.4 | L5: 37500 | M5: korszerűsítés | Q5: 8 | R5: 8
A6: MagNet Jelzáloghitel | B6: DealGoal_HQ | C6: Bubor_Tenor | D6: Alapkamat (BUBOR) | E6: Kamatfelár | F6: Yes_Or_No | G6: =G2 -> 0.0027 | H6: 0.01 | I6: 200000 | J6: 0.25 | K6: 0.3 | L6: 50000 | M6: üdülő, hétvégi ház, nyaraló vásárlás | Q6: 9 | R6: 9
A7: MagNet Stabil Ötös Kiváltó hitel | B7: DealGoal_HQ2 | C7: Bubor_Tenor | F7: Yes_Or_No | H7: 0.0075 | I7: 150000 | J7: 0.35 | K7: 0.4 | L7: 37500 | M7: telekvásárlás | Q7: 10 | R7: 10
A8: MagNet Stabil Ötös Jelzáloghitel | B8: DealGoal_HQ1 | C8: Bubor_Tenor | F8: Yes_Or_No | H8: 0.0075 | I8: 150000 | J8: 0.35 | K8: 0.4 | L8: 37500 | M8: lakáscélú hitel kiváltása | Q8: 11 | R8: 11
A9: MagNet CSOK + Lakáshitel | B9: DealGoal_OTK | C9: OTK_Tenor | F9: Yes_Or_No | H9: 0.01 | I9: 200000 | J9: 0.35 | K9: 0.4 | L9: 50000 | Q9: 12 | R9: 12
A10: MagNet Stabil Tízes Lakáshitel | B10: DealGoal_HOU | C10: Bubor_Tenor | F10: Yes_Or_No | H10: 0.0075 | I10: 150000 | J10: 0.5 | K10: 0.6 | L10: 37500 | Q10: 13 | R10: 13
A11: MagNet Stabil Tízes Új Társasházi Lakáshitel | B11: DealGoal_Tars | C11: Bubor_Tenor | F11: No | H11: 0.0075 | I11: 150000 | J11: 0.5 | K11: 0.6 | L11: 37500 | Q11: 14 | R11: 14
A12: MagNet Stabil Tízes Kiváltó hitel | B12: DealGoal_HQ2 | C12: Bubor_Tenor | F12: Yes_Or_No | H12: 0.0075 | I12: 150000 | J12: 0.5 | K12: 0.6 | L12: 37500 | Q12: 15 | R12: 15
A13: MagNet Stabil Tízes Jelzáloghitel | B13: DealGoal_HQ1 | C13: Bubor_Tenor | F13: Yes_Or_No | H13: 0.0075 | I13: 150000 | J13: 0.5 | K13: 0.6 | L13: 37500 | Q13: 16 | R13: 16
Q14: 17 | R14: 17
Q15: 18 | R15: 18
Q16: 19 | R16: 19
Q17: 20 | R17: 20
Q18: 21
Q19: 22
Q20: 23
Q21: 24
Q22: 25
Q23: 26
Q24: 27
Q25: 28
Q26: 29
Q27: 30

Sheet Kalk (hidden)
A1: Bubor | B1: 0.0027 | C1: HitelösszegKat | D1: =FREQUENCY(Minősítés!$A$2:$E$2,LoanAmount) -> 1 | F1: Hónapok száma | G1: Év | H1: Nyitó tőke | I1: =-LoanAmount+Indulo_dijak -> -4987400 | J1: Havi kamat | K1: Havi megfizetett tőke | M1: Hitelcél | N1: =IF(INDEX(BaseData!B2:B13,MATCH(PProduct,Product,0))="DealGoal_HOU",IF(ISERROR(MATCH(Dealgoal,DealGoal_HOU,0)),"NOK","OK"),IF(INDEX(BaseData!B2:B13,MATCH(PProduct,Product,0))="DealGoal_Tars",IF(ISERROR(MATCH(Dealgoal,DealGoal_Tars,0)),"NOK","OK"),IF(INDEX(BaseData!B2:B13,MATCH(PProduct,Product,0))="DealGoal_HQ",IF(ISERROR(MATCH(Dealgoal,DealGoal_HQ,0)),"NOK","OK"),IF(INDEX(BaseData!B2:B13,MATCH(PProduct,Product,0))="DealGoal_HQ1",IF(ISERROR(MATCH(Dealgoal,DealGoal_HQ1,0)),"NOK","OK"),IF(INDEX(BaseData!B2:B13,MATCH(PProduct,Product,0))="DealGoal_HQ2",IF(ISERROR(MATCH(Dealgoal,DealGoal_HQ2,0)),"NOK","OK"),IF(INDEX(BaseData!B2:B13,MATCH(PProduct,Product,0))="DealGoal_OTK",IF(ISERROR(MATCH(Dealgoal,DealGoal_OTK,0)),"NOK","OK"),"")))))) -> OK
A2: AKK | B2: 0.0106 | C2: Vállalt jóváírás kat | D2: =FREQUENCY(Minősítés!$A$2:$A$7,Jovir) -> 1 | F2: 1 | G2: 1 | H2: =RealLoanAmount -> 5000000 | I2: =Installment -> 32380.62712 | J2: =H2*RealKamatláb/360*(365/12) -> 19897.56944 | K2: =I2-J2 -> 12483.05768 | M2: Futamidő | N2: OK
A3: AKK130 | B3: =B2*1.3 -> 0.01378 | C3: Kamatfelár kategória | D3: =INDEX(Minősítés!B3:D6,D2,D1) -> A1 | F3: 2 | G3: 1 | H3: =IF(F3>Tenor*12,0,H2-K2) -> 4987516.942 | I3: =IF(F3>Tenor*12,0,Installment) -> 32380.62712 | J3: =IF(F3>Tenor*12,0,H3*RealKamatláb/360*(365/12)) -> 19847.89294 | K3: =IF(F3>Tenor*12,0,I3-J3) -> 12532.73418 | M3: Mber | N3: OK
A4: 5Y | B4: 0.0121 | F4: 3 | G4: 1 | H4: 4974984.208 | I4: 32380.62712 | J4: 19798.01875 | K4: 12582.60837 | M4: Kkedv | N4: =IF(AND(KKedv="Igen",PProduct="MagNet CSOK + Lakáshitel"),"NOK","OK") -> OK
A5: 10Y | B5: 0.02 | F5: 4 | G5: 1 | H5: 4962401.6 | I5: 32380.62712 | J5: 19747.94609 | K5: 12632.68104 | M5: Hkedv | N5: =IF(AND(EKedv>0,PProduct="MagNet CSOK + Lakáshitel"),"NOK","OK") -> OK
A6: Jóvirkedv | B6: =IF(PProduct<>"MagNet CSOK + Lakáshitel",BaseKamatfelár-RealKamatfelár,0) -> 0 | F6: 5 | G6: 1 | H6: 4949768.919 | I6: 32380.62712 | J6: 19697.67416 | K6: 12682.95297 | M6: Kampány | N6: =IF(AND(INDEX(BaseData!F2:F13,MATCH(PProduct,BaseData!A2:A13,0))="No",Kampany="Igen"),"NOK","OK") -> OK
A7: Közösségikedv | B7: =IF(KKedv="Igen",0.001,0) -> 0 | F7: 6 | G7: 1 | H7: 4937085.966 | I7: 32380.62712 | J7: 19647.20217 | K7: 12733.42495 | M7: Folyhit | N7: =IF(AND(FolyYO="Igen",PProduct="MagNet CSOK + Lakáshitel"),"NOK","OK") -> OK
A8: Egyedi kedvezmény | B8: =EKedv -> 0 | F8: 7 | G8: 1 | H8: 4924352.541 | I8: 32380.62712 | J8: 19596.52933 | K8: 12784.09779 | M8: Összesítve | N8: =COUNTIF(N1:N7,"NOK") -> 0
A9: Kedvezmények összesen | B9: =IF(PProduct<>"MagNet CSOK + Lakáshitel",SUM(B6:B8),0) -> 0 | C9: MaxKevezmény | D9: =IF(PProduct<>"MagNet CSOK + Lakáshitel",BaseKamatfelár-MinKamat,0) -> 0.02 | F9: 8 | G9: 1 | H9: 4911568.443 | I9: 32380.62712 | J9: 19545.65484 | K9: 12834.97229
A10: MinKamat | B10: =IFERROR(INDEX(Minősítés!$B$22:$M$22,,MATCH(Kalkulátor!C3,Minősítés!$B$9:$M$9,0)),Minősítés!B22) -> 0.015 | F10: 9 | G10: 1 | H10: 4898733.471 | I10: 32380.62712 | J10: 19494.57788 | K10: 12886.04924
A11: Base_Rate | B11: =IFERROR(INDEX(Minősítés!$B$25:$M$25,,MATCH(Kalkulátor!C3,Minősítés!$B$9:$M$9,0)),Minősítés!B25) -> 0.0121 | F11: 10 | G11: 1 | H11: 4885847.421 | I11: 32380.62712 | J11: 19443.29767 | K11: 12937.32945
A12: BaseKamatfelár | B12: =IFERROR(INDEX(Minősítés!$B$10:$M$10,,MATCH(Kalkulátor!C3,Minősítés!$B$9:$M$9,0)),Minősítés!B10) -> 0.035 | F12: 11 | G12: 1 | H12: 4872910.092 | I12: 32380.62712 | J12: 19391.81339 | K12: 12988.81373
A13: RealKamatfelár | B13: =IFERROR(INDEX(Minősítés!$B$10:$M$21,MATCH($D$3,Minősítés!A10:A21,0),MATCH(Kalkulátor!C3,Minősítés!$B$9:$M$9,0)),Minősítés!B11) -> 0.035 | F13: 12 | G13: 1 | H13: 4859921.278 | I13: 32380.62712 | J13: 19340.12423 | K13: 13040.5029
A14: BaseKamatláb | B14: =SUM(Base_Rate,BaseKamatfelár)-KedvValue -> 0.0471 | F14: 13 | G14: 2 | H14: 4846880.775 | I14: 32380.62712 | J14: 19288.22936 | K14: 13092.39776
A15: RealKamatláb | B15: =IF(SUM(MinKamat,Base_Rate)>SUM(BaseKamatfelár,Base_Rate)-KedvValue,SUM(Base_Rate,MinKamat),BaseKamatláb) -> 0.0471 | F15: 14 | G15: 2 | H15: 4833788.378 | I15: 32380.62712 | J15: 19236.12798 | K15: 13144.49914
F16: 15 | G16: 2 | H16: 4820643.879 | I16: 32380.62712 | J16: 19183.81927 | K16: 13196.80786
A17: Törlesztőrészlet | B17: =IFERROR(PMT(RealKamatláb/360*(365/12),Tenor*12,-RealLoanAmount),0) -> 32380.62712 | C17: =IFERROR(ROUND(PMT((RealKamatláb+TamValue)/360*(365/12),Tenor*12,-RealLoanAmount),0),0) -> 36321 | F17: 16 | G17: 2 | H17: 4807447.071 | I17: 32380.62712 | J17: 19131.30239 | K17: 13249.32474
A18: Fennálló törlesztő | B18: =SUM(ExistingInst,OD_CC*0.05) -> 0 | F18: 17 | G18: 2 | H18: 4794197.746 | I18: 32380.62712 | J18: 19078.57652 | K18: 13302.05061
A19: Folyósítási díj | B19: =IFERROR(IF(OR(INDEX(BaseData!$F$2:$F$13,MATCH(PProduct,Product,0))="No",Kampany="Nem"),MIN(LoanAmount*INDEX(BaseData!$H$2:$H$13,MATCH(PProduct,Product,0))/(1-INDEX(BaseData!$H$2:$H$13,MATCH(PProduct,Product,0))),INDEX(BaseData!$I$2:$I$13,MATCH(PProduct,Product,0))),0),0) -> 0 | F19: 18 | G19: 2 | H19: 4780895.695 | I19: 32380.62712 | J19: 19025.64082 | K19: 13354.9863
A20: Értékbecslés költsége | B20: =IFERROR(IF(OR(INDEX(BaseData!$F$2:$F$13,MATCH(PProduct,Product,0))="No",Kampany="Nem"),30000,0),0) -> 0 | F20: 19 | G20: 2 | H20: 4767540.709 | I20: 32380.62712 | J20: 18972.49447 | K20: 13408.13266
A21: Tullap | B21: =IFERROR(IF(OR(INDEX(BaseData!$F$2:$F$13,MATCH(PProduct,Product,0))="No",Kampany="Nem"),5600,0),0) -> 0 | F21: 20 | G21: 2 | H21: 4754132.576 | I21: 32380.62712 | J21: 18919.13662 | K21: 13461.49051
A22: Jelzálog bejegyzési díj | B22: 12600 | F22: 21 | G22: 2 | H22: 4740671.086 | I22: 32380.62712 | J22: 18865.56643 | K22: 13515.0607
A23: Indulódíj összesen | B23: =SUM(B19:B22) -> 12600 | F23: 22 | G23: 2 | H23: 4727156.025 | I23: 32380.62712 | J23: 18811.78306 | K23: 13568.84407
F24: 23 | G24: 2 | H24: 4713587.181 | I24: 32380.62712 | J24: 18757.78565 | K24: 13622.84147
A25: Havonta összesen megfizetett összeg Törlesztő+szla.díj | B25: =SUM(I2:I361)+Indulo_dijak -> 7783950.51 | C25: Támogatás nélküli törlesztő - támogatott törlesztő | D25: =C17-Installment -> 3940.372876 | F25: 24 | G25: 2 | H25: 4699964.34 | I25: 32380.62712 | J25: 18703.57337 | K25: 13677.05376
B26: THM | C26: Törlesztő | F26: 25 | G26: 3 | H26: 4686287.286 | I26: 32380.62712 | J26: 18649.14534 | K26: 13731.48178
B27: =IFERROR(POWER((IRR(I1:I361,0.01)+1),12)-1,0) -> 0.04912578319 | C27: =IFERROR(PMT(RealKamatláb/360*(365/12),Tenor*12,-RealLoanAmount),0) -> 32380.62712 | D27: Normál | F27: 26 | G27: 3 | H27: 4672555.804 | I27: 32380.62712 | J27: 18594.50072 | K27: 13786.12641
A28: =Base_Rate+21.05% -> 0.2226 | B28: 0.2513028395 | C28: 95125.04202 | D28: Elrettentő | F28: 27 | G28: 3 | H28: 4658769.678 | I28: 32380.62712 | J28: 18539.63864 | K28: 13840.98849
A29: =3%+TamValue -> 0.04378 | B29: 0.04560981494 | C29: 31467.54606 | F29: 28 | G29: 3 | H29: 4644928.689 | I29: 32380.62712 | J29: 18484.55823 | K29: 13896.06889
F30: 29 | G30: 3 | H30: 4631032.62 | I30: 32380.62712 | J30: 18429.25863 | K30: 13951.36849
F31: 30 | G31: 3 | H31: 4617081.252 | I31: 32380.62712 | J31: 18373.73897 | K31: 14006.88816
A32: LTV | B32: =IFERROR(RealLoanAmount/(CollValue-ExistingLoan),0.4) -> 0.4 | C32: =FREQUENCY(Minősítés!$U$2:$V$5,LTV) -> 2 | F32: 31 | G32: 3 | H32: 4603074.364 | I32: 32380.62712 | J32: 18317.99836 | K32: 14062.62876
A33: JTM | B33: =IFERROR((FennAllo+Installment)/(Income-LevLet),0) -> 0 | C33: =IF(INDEX(BaseData!$C$2:$C$13,MATCH(PProduct,Product,0))="Bubor_Tenor",FREQUENCY(Minősítés!$F$2:$F$6,Kalk!B33),IF(INDEX(BaseData!$C$2:$C$13,MATCH(PProduct,Product,0))="Otos_Tenor",FREQUENCY(Minősítés!$K$2:$K$6,Kalk!B33),FREQUENCY(Minősítés!$P$2:$P$6,Kalk!B33))) -> 1 | F33: 32 | G33: 3 | H33: 4589011.735 | I33: 32380.62712 | J33: 18262.03594 | K33: 14118.59119
A34: Minősítés | B34: =INDEX(Minősítés!B3:D5,C32,C33) -> B1 | F34: 33 | G34: 3 | H34: 4574893.144 | I34: 32380.62712 | J34: 18205.85081 | K34: 14174.77632
B35: =IF(AND(OR(AND(Income-LevLet<=400000,JTM>INDEX(BaseData!$J$2:$J$13,MATCH(PProduct,BaseData!$A$2:$A$13,0))),AND(Income-LevLet>400000,JTM>INDEX(BaseData!$K$2:$K$13,MATCH(PProduct,BaseData!$A$2:$A$13,0))),LTV>0.8),Kiváltás),"Nem hitelezhető",B34) -> B1 | F35: 34 | G35: 3 | H35: 4560718.367 | I35: 32380.62712 | J35: 18149.44209 | K35: 14231.18504
A36: Nem kiváltás? | B36: =IF(OR(Dealgoal=BaseData!M8,Dealgoal=DealGoal_HQ2),FALSE,TRUE) -> TRUE | F36: 35 | G36: 3 | H36: 4546487.182 | I36: 32380.62712 | J36: 18092.80889 | K36: 14287.81824
F37: 36 | G37: 3 | H37: 4532199.364 | I37: 32380.62712 | J37: 18035.95032 | K37: 14344.67681
F38: 37 | G38: 4 | H38: 4517854.687 | I38: 32380.62712 | J38: 17978.86548 | K38: 14401.76165
F39: 38 | G39: 4 | H39: 4503452.926 | I39: 32380.62712 | J39: 17921.55347 | K39: 14459.07366
F40: 39 | G40: 4 | H40: 4488993.852 | I40: 32380.62712 | J40: 17864.01338 | K40: 14516.61374
F41: 40 | G41: 4 | H41: 4474477.238 | I41: 32380.62712 | J41: 17806.24432 | K41: 14574.38281
F42: 41 | G42: 4 | H42: 4459902.855 | I42: 32380.62712 | J42: 17748.24536 | K42: 14632.38177
F43: 42 | G43: 4 | H43: 4445270.474 | I43: 32380.62712 | J43: 17690.01559 | K43: 14690.61153
F44: 43 | G44: 4 | H44: 4430579.862 | I44: 32380.62712 | J44: 17631.5541 | K44: 14749.07303
F45: 44 | G45: 4 | H45: 4415830.789 | I45: 32380.62712 | J45: 17572.85996 | K45: 14807.76717
F46: 45 | G46: 4 | H46: 4401023.022 | I46: 32380.62712 | J46: 17513.93224 | K46: 14866.69488
F47: 46 | G47: 4 | H47: 4386156.327 | I47: 32380.62712 | J47: 17454.77002 | K47: 14925.8571
F48: 47 | G48: 4 | H48: 4371230.47 | I48: 32380.62712 | J48: 17395.37237 | K48: 14985.25476
F49: 48 | G49: 4 | H49: 4356245.215 | I49: 32380.62712 | J49: 17335.73834 | K49: 15044.88879
F50: 49 | G50: 5 | H50: 4341200.326 | I50: 32380.62712 | J50: 17275.86699 | K50: 15104.76013
F51: 50 | G51: 5 | H51: 4326095.566 | I51: 32380.62712 | J51: 17215.75739 | K51: 15164.86973
F52: 51 | G52: 5 | H52: 4310930.697 | I52: 32380.62712 | J52: 17155.40858 | K52: 15225.21854
F53: 52 | G53: 5 | H53: 4295705.478 | I53: 32380.62712 | J53: 17094.81961 | K53: 15285.80751
F54: 53 | G54: 5 | H54: 4280419.67 | I54: 32380.62712 | J54: 17033.98953 | K54: 15346.6376
F55: 54 | G55: 5 | H55: 4265073.033 | I55: 32380.62712 | J55: 16972.91737 | K55: 15407.70975
F56: 55 | G56: 5 | H56: 4249665.323 | I56: 32380.62712 | J56: 16911.60218 | K56: 15469.02495
F57: 56 | G57: 5 | H57: 4234196.298 | I57: 32380.62712 | J57: 16850.04298 | K57: 15530.58415
F58: 57 | G58: 5 | H58: 4218665.714 | I58: 32380.62712 | J58: 16788.2388 | K58: 15592.38832
F59: 58 | G59: 5 | H59: 4203073.326 | I59: 32380.62712 | J59: 16726.18868 | K59: 15654.43845
F60: 59 | G60: 5 | H60: 4187418.887 | I60: 32380.62712 | J60: 16663.89162 | K60: 15716.7355
F61: 60 | G61: 5 | H61: 4171702.152 | I61: 32380.62712 | J61: 16601.34665 | K61: 15779.28047
F62: 61 | G62: 6 | H62: 4155922.871 | I62: 32380.62712 | J62: 16538.55279 | K62: 15842.07434
F63: 62 | G63: 6 | H63: 4140080.797 | I63: 32380.62712 | J63: 16475.50903 | K63: 15905.11809
F64: 63 | G64: 6 | H64: 4124175.679 | I64: 32380.62712 | J64: 16412.21439 | K64: 15968.41273
F65: 64 | G65: 6 | H65: 4108207.266 | I65: 32380.62712 | J65: 16348.66787 | K65: 16031.95925
F66: 65 | G66: 6 | H66: 4092175.307 | I66: 32380.62712 | J66: 16284.86847 | K66: 16095.75865
F67: 66 | G67: 6 | H67: =IF(F67>Tenor*12,0,H66-K66) -> 4076079.548 | I67: =IF(F67>Tenor*12,0,Installment) -> 32380.62712 | J67: =IF(F67>Tenor*12,0,H67*RealKamatláb/360*(365/12)) -> 16220.81517 | K67: =IF(F67>Tenor*12,0,I67-J67) -> 16159.81195
F68: 67 | G68: 6 | H68: 4059919.736 | I68: 32380.62712 | J68: 16156.50698 | K68: 16224.12015
F69: 68 | G69: 6 | H69: 4043695.616 | I69: 32380.62712 | J69: 16091.94287 | K69: 16288.68426
F70: 69 | G70: 6 | H70: 4027406.932 | I70: 32380.62712 | J70: 16027.12182 | K70: 16353.5053
F71: 70 | G71: 6 | H71: 4011053.427 | I71: 32380.62712 | J71: 15962.04282 | K71: 16418.5843
F72: 71 | G72: 6 | H72: 3994634.842 | I72: 32380.62712 | J72: 15896.70484 | K72: 16483.92229
F73: 72 | G73: 6 | H73: 3978150.92 | I73: 32380.62712 | J73: 15831.10684 | K73: 16549.52029
F74: 73 | G74: 7 | H74: 3961601.4 | I74: 32380.62712 | J74: 15765.24779 | K74: 16615.37933
F75: 74 | G75: 7 | H75: 3944986.02 | I75: 32380.62712 | J75: 15699.12666 | K75: 16681.50046
F76: 75 | G76: 7 | H76: 3928304.52 | I76: 32380.62712 | J76: 15632.7424 | K76: 16747.88473
F77: 76 | G77: 7 | H77: 3911556.635 | I77: 32380.62712 | J77: 15566.09396 | K77: 16814.53317
F78: 77 | G78: 7 | H78: 3894742.102 | I78: 32380.62712 | J78: 15499.18029 | K78: 16881.44684
F79: 78 | G79: 7 | H79: 3877860.655 | I79: 32380.62712 | J79: 15432.00034 | K79: 16948.62679
F80: 79 | G80: 7 | H80: 3860912.028 | I80: 32380.62712 | J80: 15364.55304 | K80: 17016.07408
F81: 80 | G81: 7 | H81: 3843895.954 | I81: 32380.62712 | J81: 15296.83734 | K81: 17083.78979
F82: 81 | G82: 7 | H82: 3826812.164 | I82: 32380.62712 | J82: 15228.85216 | K82: 17151.77497
F83: 82 | G83: 7 | H83: 3809660.39 | I83: 32380.62712 | J83: 15160.59643 | K83: 17220.03069
F84: 83 | G84: 7 | H84: 3792440.359 | I84: 32380.62712 | J84: 15092.06908 | K84: 17288.55804
F85: 84 | G85: 7 | H85: 3775151.801 | I85: 32380.62712 | J85: 15023.26902 | K85: 17357.3581
F86: 85 | G86: 8 | H86: 3757794.443 | I86: 32380.62712 | J86: 14954.19518 | K86: 17426.43195
F87: 86 | G87: 8 | H87: 3740368.011 | I87: 32380.62712 | J87: 14884.84645 | K87: 17495.78068
F88: 87 | G88: 8 | H88: 3722872.23 | I88: 32380.62712 | J88: 14815.22175 | K88: 17565.40538
F89: 88 | G89: 8 | H89: 3705306.825 | I89: 32380.62712 | J89: 14745.31997 | K89: 17635.30715
F90: 89 | G90: 8 | H90: 3687671.518 | I90: 32380.62712 | J90: 14675.14002 | K90: 17705.4871
F91: 90 | G91: 8 | H91: 3669966.03 | I91: 32380.62712 | J91: 14604.68079 | K91: 17775.94633
F92: 91 | G92: 8 | H92: 3652190.084 | I92: 32380.62712 | J92: 14533.94116 | K92: 17846.68596
F93: 92 | G93: 8 | H93: 3634343.398 | I93: 32380.62712 | J93: 14462.92003 | K93: 17917.70709
F94: 93 | G94: 8 | H94: 3616425.691 | I94: 32380.62712 | J94: 14391.61627 | K94: 17989.01086
F95: 94 | G95: 8 | H95: 3598436.68 | I95: 32380.62712 | J95: 14320.02875 | K95: 18060.59838
F96: 95 | G96: 8 | H96: 3580376.082 | I96: 32380.62712 | J96: 14248.15635 | K96: 18132.47078
F97: 96 | G97: 8 | H97: 3562243.611 | I97: 32380.62712 | J97: 14175.99793 | K97: 18204.6292
F98: 97 | G98: 9 | H98: 3544038.982 | I98: 32380.62712 | J98: 14103.55235 | K98: 18277.07477
F99: 98 | G99: 9 | H99: 3525761.907 | I99: 32380.62712 | J99: 14030.81848 | K99: 18349.80865
F100: 99 | G100: 9 | H100: 3507412.098 | I100: 32380.62712 | J100: 13957.79516 | K100: 18422.83196
F101: 100 | G101: 9 | H101: 3488989.266 | I101: 32380.62712 | J101: 13884.48124 | K101: 18496.14588
F102: 101 | G102: 9 | H102: 3470493.121 | I102: 32380.62712 | J102: 13810.87557 | K102: 18569.75155
F103: 102 | G103: 9 | H103: 3451923.369 | I103: 32380.62712 | J103: 13736.97699 | K103: 18643.65013
F104: 103 | G104: 9 | H104: 3433279.719 | I104: 32380.62712 | J104: 13662.78433 | K104: 18717.8428
F105: 104 | G105: 9 | H105: 3414561.876 | I105: 32380.62712 | J105: 13588.29641 | K105: 18792.33071
F106: 105 | G106: 9 | H106: 3395769.545 | I106: 32380.62712 | J106: 13513.51207 | K106: 18867.11506
F107: 106 | G107: 9 | H107: 3376902.43 | I107: 32380.62712 | J107: 13438.43012 | K107: 18942.197
F108: 107 | G108: 9 | H108: 3357960.233 | I108: 32380.62712 | J108: 13363.04939 | K108: 19017.57774
F109: 108 | G109: 9 | H109: 3338942.656 | I109: 32380.62712 | J109: 13287.36867 | K109: 19093.25845
F110: 109 | G110: 10 | H110: 3319849.397 | I110: 32380.62712 | J110: 13211.38678 | K110: 19169.24034
F111: 110 | G111: 10 | H111: 3300680.157 | I111: 32380.62712 | J111: 13135.10253 | K111: 19245.5246
F112: 111 | G112: 10 | H112: 3281434.632 | I112: 32380.62712 | J112: 13058.51469 | K112: 19322.11243
F113: 112 | G113: 10 | H113: 3262112.52 | I113: 32380.62712 | J113: 12981.62208 | K113: 19399.00504
F114: 113 | G114: 10 | H114: 3242713.515 | I114: 32380.62712 | J114: 12904.42347 | K114: 19476.20365
F115: 114 | G115: 10 | H115: 3223237.311 | I115: 32380.62712 | J115: 12826.91765 | K115: 19553.70948
F116: 115 | G116: 10 | H116: 3203683.602 | I116: 32380.62712 | J116: 12749.10339 | K116: 19631.52374
F117: 116 | G117: 10 | H117: 3184052.078 | I117: 32380.62712 | J117: 12670.97947 | K117: 19709.64766
F118: 117 | G118: 10 | H118: 3164342.43 | I118: 32380.62712 | J118: 12592.54465 | K118: 19788.08247
F119: 118 | G119: 10 | H119: 3144554.348 | I119: 32380.62712 | J119: 12513.7977 | K119: 19866.82942
F120: 119 | G120: 10 | H120: 3124687.518 | I120: 32380.62712 | J120: 12434.73738 | K120: 19945.88975
F121: 120 | G121: 10 | H121: 3104741.629 | I121: 32380.62712 | J121: 12355.36243 | K121: 20025.26469
F122: 121 | G122: 11 | H122: 3084716.364 | I122: 32380.62712 | J122: 12275.67161 | K122: 20104.95551
F123: 122 | G123: 11 | H123: 3064611.408 | I123: 32380.62712 | J123: 12195.66366 | K123: 20184.96346
F124: 123 | G124: 11 | H124: 3044426.445 | I124: 32380.62712 | J124: 12115.33732 | K124: 20265.2898
F125: 124 | G125: 11 | H125: 3024161.155 | I125: 32380.62712 | J125: 12034.69132 | K125: 20345.93581
F126: 125 | G126: 11 | H126: 3003815.219 | I126: 32380.62712 | J126: 11953.72438 | K126: 20426.90274
F127: 126 | G127: 11 | H127: 2983388.317 | I127: 32380.62712 | J127: 11872.43524 | K127: 20508.19188
F128: 127 | G128: 11 | H128: 2962880.125 | I128: 32380.62712 | J128: 11790.82261 | K128: 20589.80452
F129: 128 | G129: 11 | H129: 2942290.32 | I129: 32380.62712 | J129: 11708.88519 | K129: 20671.74193
F130: 129 | G130: 11 | H130: 2921618.578 | I130: 32380.62712 | J130: 11626.62171 | K130: 20754.00541
F131: 130 | G131: 11 | H131: =IF(F131>Tenor*12,0,H130-K130) -> 2900864.573 | I131: =IF(F131>Tenor*12,0,Installment) -> 32380.62712 | J131: =IF(F131>Tenor*12,0,H131*RealKamatláb/360*(365/12)) -> 11544.03086 | K131: =IF(F131>Tenor*12,0,I131-J131) -> 20836.59627
F132: 131 | G132: 11 | H132: 2880027.977 | I132: 32380.62712 | J132: 11461.11133 | K132: 20919.51579
F133: 132 | G133: 11 | H133: 2859108.461 | I133: 32380.62712 | J133: 11377.86183 | K133: 21002.7653
F134: 133 | G134: 12 | H134: 2838105.695 | I134: 32380.62712 | J134: 11294.28103 | K134: 21086.34609
F135: 134 | G135: 12 | H135: 2817019.349 | I135: 32380.62712 | J135: 11210.36763 | K135: 21170.2595
F136: 135 | G136: 12 | H136: 2795849.09 | I136: 32380.62712 | J136: 11126.12028 | K136: 21254.50684
F137: 136 | G137: 12 | H137: 2774594.583 | I137: 32380.62712 | J137: 11041.53768 | K137: 21339.08945
F138: 137 | G138: 12 | H138: 2753255.494 | I138: 32380.62712 | J138: 10956.61848 | K138: 21424.00865
F139: 138 | G139: 12 | H139: 2731831.485 | I139: 32380.62712 | J139: 10871.36134 | K139: 21509.26579
F140: 139 | G140: 12 | H140: 2710322.219 | I140: 32380.62712 | J140: 10785.76491 | K140: 21594.86221
F141: 140 | G141: 12 | H141: 2688727.357 | I141: 32380.62712 | J141: 10699.82786 | K141: 21680.79926
F142: 141 | G142: 12 | H142: 2667046.558 | I142: 32380.62712 | J142: 10613.54882 | K142: 21767.07831
F143: 142 | G143: 12 | H143: 2645279.479 | I143: 32380.62712 | J143: 10526.92643 | K143: 21853.7007
F144: 143 | G144: 12 | H144: 2623425.779 | I144: 32380.62712 | J144: 10439.95932 | K144: 21940.6678
F145: 144 | G145: 12 | H145: 2601485.111 | I145: 32380.62712 | J145: 10352.64613 | K145: 22027.98099
F146: 145 | G146: 13 | H146: 2579457.13 | I146: 32380.62712 | J146: 10264.98547 | K146: 22115.64165
F147: 146 | G147: 13 | H147: 2557341.488 | I147: 32380.62712 | J147: 10176.97597 | K147: 22203.65115
F148: 147 | G148: 13 | H148: 2535137.837 | I148: 32380.62712 | J148: 10088.61623 | K148: 22292.01089
F149: 148 | G149: 13 | H149: 2512845.826 | I149: 32380.62712 | J149: 9999.904866 | K149: 22380.72226
F150: 149 | G150: 13 | H150: 2490465.104 | I150: 32380.62712 | J150: 9910.840471 | K150: 22469.78665
F151: 150 | G151: 13 | H151: 2467995.317 | I151: 32380.62712 | J151: 9821.421643 | K151: 22559.20548
F152: 151 | G152: 13 | H152: 2445436.112 | I152: 32380.62712 | J152: 9731.646971 | K152: 22648.98015
F153: 152 | G153: 13 | H153: 2422787.132 | I153: 32380.62712 | J153: 9641.51504 | K153: 22739.11208
F154: 153 | G154: 13 | H154: 2400048.02 | I154: 32380.62712 | J154: 9551.024428 | K154: 22829.6027
F155: 154 | G155: 13 | H155: 2377218.417 | I155: 32380.62712 | J155: 9460.173707 | K155: 22920.45342
F156: 155 | G156: 13 | H156: 2354297.963 | I156: 32380.62712 | J156: 9368.961444 | K156: 23011.66568
F157: 156 | G157: 13 | H157: 2331286.298 | I157: 32380.62712 | J157: 9277.386201 | K157: 23103.24092
F158: 157 | G158: 14 | H158: 2308183.057 | I158: 32380.62712 | J158: 9185.446533 | K158: 23195.18059
F159: 158 | G159: 14 | H159: 2284987.876 | I159: 32380.62712 | J159: 9093.140989 | K159: 23287.48613
F160: 159 | G160: 14 | H160: 2261700.39 | I160: 32380.62712 | J160: 9000.468115 | K160: 23380.15901
F161: 160 | G161: 14 | H161: 2238320.231 | I161: 32380.62712 | J161: 8907.426447 | K161: 23473.20068
F162: 161 | G162: 14 | H162: 2214847.03 | I162: 32380.62712 | J162: 8814.014519 | K162: 23566.61261
F163: 162 | G163: 14 | H163: 2191280.418 | I163: 32380.62712 | J163: 8720.230857 | K163: 23660.39627
F164: 163 | G164: 14 | H164: 2167620.022 | I164: 32380.62712 | J164: 8626.073981 | K164: 23754.55314
F165: 164 | G165: 14 | H165: 2143865.468 | I165: 32380.62712 | J165: 8531.542407 | K165: 23849.08472
F166: 165 | G166: 14 | H166: 2120016.384 | I166: 32380.62712 | J166: 8436.634643 | K166: 23943.99248
F167: 166 | G167: 14 | H167: 2096072.391 | I167: 32380.62712 | J167: 8341.349193 | K167: 24039.27793
F168: 167 | G168: 14 | H168: 2072033.113 | I168: 32380.62712 | J168: 8245.684552 | K168: 24134.94257
F169: 168 | G169: 14 | H169: 2047898.171 | I169: 32380.62712 | J169: 8149.639213 | K169: 24230.98791
F170: 169 | G170: 15 | H170: 2023667.183 | I170: 32380.62712 | J170: 8053.21166 | K170: 24327.41546
F171: 170 | G171: 15 | H171: 1999339.767 | I171: 32380.62712 | J171: 7956.400373 | K171: 24424.22675
F172: 171 | G172: 15 | H172: 1974915.541 | I172: 32380.62712 | J172: 7859.203823 | K172: 24521.4233
F173: 172 | G173: 15 | H173: 1950394.117 | I173: 32380.62712 | J173: 7761.620478 | K173: 24619.00665
F174: 173 | G174: 15 | H174: 1925775.111 | I174: 32380.62712 | J174: 7663.6488 | K174: 24716.97832
F175: 174 | G175: 15 | H175: 1901058.132 | I175: 32380.62712 | J175: 7565.287241 | K175: 24815.33988
F176: 175 | G176: 15 | H176: 1876242.792 | I176: 32380.62712 | J176: 7466.534251 | K176: 24914.09287
F177: 176 | G177: 15 | H177: 1851328.7 | I177: 32380.62712 | J177: 7367.388273 | K177: 25013.23885
F178: 177 | G178: 15 | H178: 1826315.461 | I178: 32380.62712 | J178: 7267.847741 | K178: 25112.77938
F179: 178 | G179: 15 | H179: 1801202.681 | I179: 32380.62712 | J179: 7167.911087 | K179: 25212.71604
F180: 179 | G180: 15 | H180: 1775989.965 | I180: 32380.62712 | J180: 7067.576733 | K180: 25313.05039
F181: 180 | G181: 15 | H181: 1750676.915 | I181: 32380.62712 | J181: 6966.843098 | K181: 25413.78403
F182: 181 | G182: 16 | H182: 1725263.131 | I182: 32380.62712 | J182: 6865.708591 | K182: 25514.91853
F183: 182 | G183: 16 | H183: 1699748.212 | I183: 32380.62712 | J183: 6764.171618 | K183: 25616.45551
F184: 183 | G184: 16 | H184: 1674131.757 | I184: 32380.62712 | J184: 6662.230578 | K184: 25718.39655
F185: 184 | G185: 16 | H185: 1648413.36 | I185: 32380.62712 | J185: 6559.883862 | K185: 25820.74326
F186: 185 | G186: 16 | H186: 1622592.617 | I186: 32380.62712 | J186: 6457.129855 | K186: 25923.49727
F187: 186 | G187: 16 | H187: 1596669.12 | I187: 32380.62712 | J187: 6353.966938 | K187: 26026.66019
F188: 187 | G188: 16 | H188: 1570642.46 | I188: 32380.62712 | J188: 6250.393482 | K188: 26130.23364
F189: 188 | G189: 16 | H189: 1544512.226 | I189: 32380.62712 | J189: 6146.407854 | K189: 26234.21927
F190: 189 | G190: 16 | H190: 1518278.007 | I190: 32380.62712 | J190: 6042.008415 | K190: 26338.61871
F191: 190 | G191: 16 | H191: 1491939.388 | I191: 32380.62712 | J191: 5937.193516 | K191: 26443.43361
F192: 191 | G192: 16 | H192: 1465495.954 | I192: 32380.62712 | J192: 5831.961504 | K192: 26548.66562
F193: 192 | G193: 16 | H193: 1438947.289 | I193: 32380.62712 | J193: 5726.310721 | K193: 26654.3164
F194: 193 | G194: 17 | H194: 1412292.972 | I194: 32380.62712 | J194: 5620.239498 | K194: 26760.38763
F195: 194 | G195: 17 | H195: =IF(F195>Tenor*12,0,H194-K194) -> 1385532.585 | I195: =IF(F195>Tenor*12,0,Installment) -> 32380.62712 | J195: =IF(F195>Tenor*12,0,H195*RealKamatláb/360*(365/12)) -> 5513.746164 | K195: =IF(F195>Tenor*12,0,I195-J195) -> 26866.88096
F196: 195 | G196: 17 | H196: 1358665.704 | I196: 32380.62712 | J196: 5406.829038 | K196: 26973.79809
F197: 196 | G197: 17 | H197: 1331691.906 | I197: 32380.62712 | J197: 5299.486434 | K197: 27081.14069
F198: 197 | G198: 17 | H198: 1304610.765 | I198: 32380.62712 | J198: 5191.716659 | K198: 27188.91047
F199: 198 | G199: 17 | H199: 1277421.854 | I199: 32380.62712 | J199: 5083.518012 | K199: 27297.10911
F200: 199 | G200: 17 | H200: 1250124.745 | I200: 32380.62712 | J200: 4974.888787 | K200: 27405.73834
... 161 more rows

Sheet Indikativ (hidden)
A1: Bevezető szöveg
A2: Ez a dokumentum | E2: 2019.05.31-én részére készült.
A3: Ez a dokumentum az Ön által ezidáig megadott adatok és a jelenlegi pénzügyi piaci feltételek alapján készült.
A4: Az alábbi tájékoztatás | F4: 2019.06.30-ig érvényes
A5: Ezt követően a piaci feltételek függvényében változhat.
A6: Ez a dokumentum nem kötelezi MagNet Bank Zrt.-t arra, hogy hitelt nyújtson Önnek.
A7: 1. Hitelező
A8: Hitelező neve: MagNet Magyar Közösségi Bank Zrt.
A9: Telefonszám: 06-1-428-8888
A10: Levelezési cím: 1376 Budapest 62. Pf. 86.
A11: E-mail cím: info@magnetbank.hu
A12: Internetcím: www.magnetbank.hu
A13: 2. A hitel fő jellemzői
A14: A hitel összege: | E14: 5000000 | I14: A hitel devizaneme: | M14: HUF (magyar forint)
A15: A hitel futamideje: | E15: 240
A16: A hitel típusa: | E16: MagNet Stabil Ötös Lakáshitel
A17: A kölcsön visszafizetése annuitásos módon történik, ahol a kölcsönfelvevő egy kamatperióduson belül havonta egyenlő összeget fizet. Az annuitásos törlesztőrészlet hitelkamatot és tőkét is tartalmaz, azonban a havonta fizetendő részletben eltérő a kamat és a tőke aránya. A törlesztőrészleten belül - változatlan ügyleti kamatlábat feltételezve - a futamidő elején magasabb a kamat, később pedig a tőke aránya. Az alkalmazandó kamatláb típusa: 5 éves kamatperiódusban rögzített kamatozású. Az ügyleti kamat kamatperiódusonként rögzített kamatozású, az egyes kamatperiódusok alatt az ügyleti kamat nem változtatható. Kamatperiódus hossza: 5 év A hitelkamat mértékét a kölcsön törlesztésére szolgáló fizetési számlán havonta jóváírt összeg, és a szerződött kölcsönösszeg alapján, valamint a „Hirdetmény a MagNet Bank Zrt. fogyasztók részére nyújtott hitelek kamatairól, alkalmazott díjairól, és költségeiről” Hirdetményben (továbbiakban: Hirdetmény) közzétett feltételek fennállása esetén nyújtott kamatkedvezmények figyelembe vételével a Bank saját hatáskörében határozza meg, és mértékét a mindenkor hatályos Hirdetményében teszi közzé. Az első kamatperiódus utolsó napja a 60. törlesztési esedékesség napja, az ezt követő kamatperiódusok kezdete az előző kamatperiódus utolsó napját követő nap, utolsó napja pedig az előző kamatperiódus végétől számított 60. törlesztési esedékességi nap. Az utolsó kamatperiódus utolsó napja megegyezik a kölcsön lejáratának napjával. Választott kamatváltoztatási mutató: H3K5. Kamatváltozás:
A18: Az ügyleti kamat mértékét a kölcsön futamideje alatt legfeljebb öt alkalommal az egyes kamatperiódusok lejártát követően legfeljebb a kölcsönszerződésben meghatározott, a Magyar Nemzeti Bank honlapján közzétett H3K5 kamatváltoztatási mutató alkalmazásával számított mértékig módosíthatja. Az új kamatperiódusban alkalmazott kamat mértékét a kamatperiódus lejártát megelőző 120. napi kamatváltoztatási mutató figyelembevételével kell megállapítani. Ha a hitelszerződés egyoldalú módosításának alapjául szolgáló feltételek a hitelkamat csökkentését teszik lehetővé, akkor a Banknak ezt a fogyasztó javára érvényesíteni kell. A bank jogosult a nyújtott kamatkedvezmény feltételeit a futamidő során vizsgálni, és amennyiben a felülvizsgálat során a kedvezménynyújtás feltételei már nem állnak fent, akkor a Bank jogosult a kamatkedvezményt a hátralevő futamidőre vonatkozóan megvonni. A Bank a honlapján elérhetővé teszi a referencia kamat alapú hitelek kamatainak kiszámításához, az általa felhasznált referencia-kamatláb és kamatfelár-változtatási mutató aktuális és korábbi adatait, valamint alkalmazásának időszakát. A Stabil Stabil ötös és Stabil tízes termékkörbe tartozó hitelek esetén, a kamatváltoztatási mutatóról szintén a Hirdetményben talál tájékoztatást. (Hirdetmény a MagNet Bank Zrt. fogyasztók részére nyújtott, forint alapú hitelek referencia - kamatlábairól, és kamat- kamatfelár-változtatási mutatóról, elérhetősége: https://www.magnetbank.hu/dokumentumok/hirdetmenyek)
A19: Az Ön által fizetendő teljes összeg: | H19: 8517076.074
A20: Ez azt jelenti, hogy | E20: 5000000 | H20: -ért, amelyet hitelként felvesz, | N20: 8517076.074 | Q20: -ot kell visszafizetnie.
A21: Kérjük vegye figyelembe, hogy a futamidő alatt a hitelkamat mértéke a hitel típusától függően, a kamatváltoztatási mutatónak/referencia-kamatláb változásának megfelelően módosulhat, ezért előfordulhat, hogy az itt feltüntetett fizetendő teljes összeg változik, ezért az csupán szemléltető jelleggel került feltüntetésre.
A22: Felhívjuk szíves figyelmét, a kölcsön biztosítéka minden esetben magánszemély tulajdonában álló, Magyarország területén fekvő, önállóan forgalomképes ingatlanon alapított önálló zálogjog.
A23: Ennek a tájékoztatásnak az elkészítéséhez az ingatlan értékét | M23: 0 | P23: -nak tekintettük.
A24: A maximálisan igénybe vehető hitelösszeg az ingatlan forgalmi értékének | N24: 0.8 | O24: -a lehet, amely azt jelenti, hogy
A25: az igénybe vehető hitel maximális összege a biztosíték értéke alapján: | N25: 0
A26: Az ingatlan értékét a Bank által elfogadott külső értékbecslő vállalkozás állapítja meg, és az értékbecslő által megállapított ingatlanérték eltérhet az ingatlan fent megadott értékétől.
A27: 3. Kamat és egyéb költségek
A28: A teljes hiteldíj mutató (THM) a hitel teljes éves díját mutatja meg százalékban kifejezve. A THM a különböző ajánlatok összehasonlítását szolgálja.
A29: Az Ön hitelére érvényes THM | G29: 0.06139452843
A30: Tájékoztatjuk, hogy a bemutatott THM azzal a feltételezéssel került kiszámításra, hogy a kamatláb a hitelszerződés teljes időtartama alatt a kezdeti időszakra rögzített szinten marad.
A31: Mivel az Ön hitele változó kamatlábú hitel, a mindenkori THM eltérhet az előbbiekben meghatározott THM
A32: mértékétől, ha a hitel kamatlába változik. Például amennyiben a kamatláb | O32: 0.2323 | Q32: -ra emelkedne,
A33: a THM | C33: 0.2680330105 | E33: -ra nőhet.
A34: A feltüntetett THM meghatározása az aktuális feltételek, illetve a hatályos jogszabályok figyelembevételével történt. A feltételek változása esetén a THM mértéke módosulhat. A THM-mutató értéke nem tükrözi a változó kamatozású hitelek kamatkockázatát. A hitel felvételéhez a fedezetül bevont ingatlanra vonatkozóan egyéni vagyonbiztosítás megkötése, vagy megléte szükséges lehet.
A35: A THM az alábbiakat tartalmazza:
A36: Kamatláb
A37: 0.0568
A38: A hitelkamatból a Bank a szerződés szerint kedvezményt biztosít a teljes futamidő alatt, ha a kamatkedvezmény Hirdetményben és a kölcsönszerződésben meghatározott feltételei fennállnak.
A39: Kamatfelár-kedvezmény mértéke: | H39: 0 | J39: (Az ügyleti kamat már tartalmazza a kamatkedvezményt.)
A40: Figyelembe vett kamatfelár-kedvezmény:
B41: Havi rendszeres jóváírásra tekintettel nyújtott kamatfelár-kedvezmény: | P41: 0
B42: "Közösségi ügyfél" kedvezmény: | I42: 0
B43: Egyedi kamatkedvezmény:
A44: Az egyes kamatfelár kedvezmények mértékeit és a feltételeit a Hirdetmény tartalmazza.
A45: THM egyéb összetevői:
A47: Egyszer fizetendő díjak, költségek:
B48: Folyósítási díj: | F48: 37783.3753
B49: Egyszeri díj, mely a kölcsön folyósításakor, a folyósított kölcsönösszeg után fizetendő.
B50: Értékbecslés költsége: | G50: 30000
B51: A helyszíni szemle során esedékes, és közvetlenül az értékbecslőnek fizetendő. Abban az esetben sem jár vissza, ha az igénylés nem kerül jóváhagyásra.
B52: Takarnetről lekért, vagy a Földhivatal által kiállított hiteles tulajdoni lap másolatának díja: | S52: 5600
B53: Térképmásolat TAKARNET-en keresztüli lekérdezésének költsége: 3 000 Ft
B54: Fedezettel kapcsolatos ügyintézés költsége:
B56: A jelzálogjog bejegyzéséért díjat kell fizetnie. Díj összege: 12 600 Ft. (Az önálló zálogjog ingatlan-nyilvántartásban történő bejegyzése, valamint a bejegyzés módosítása iránti eljárás jogszabályban meghatározott díja.)
A57: Rendszeresen fizetendő költségek:
B58: Rendelkezésre tartási díj:
B59: A kölcsönszerződésben meghatározott, de még ki nem folyósított kölcsön(rész) után a rendelkezésre tartási időszakban fizetendő díj, amelynek mértéke: 2%, de legfeljebb az ügyleti kamat 50%-a. A díj a mindenkori kölcsöntörlesztés teljesítésével egyidejűleg esedékes.
A60: Az alábbi költségek nem ismertek a hitelező számára, és így azokat a THM nem foglalja magában:
B61: Egyéni vagyonbiztosítás díja: A Bank döntésben előírhatja a kölcsön fedezetéül szolgáló ingatlan(ok)ra az egyéni vagyonbiztosítás meglétét. Ebben az esetben a biztosítást, a teljes futamidő alatt fent kell tartani! Az ingatlanra megkötött egyéni vagyonbiztosítás után fizetendő biztosítási díjat a biztosítók egyedi díjszabásuk szerint határozzák meg. A fogyasztó szabadon eldöntheti, hogy bármely magyarországi biztosítótársaságból választva mely biztosítótársaságnál köti meg a biztosításra vonatkozó szerződést.
B62: Hitelfedezeti (kockázati) életbiztosítás díja: A Bank előírhatja az Adós személyére a hitelfedezeti (kockázati) életbiztosítás megkötését. Az életbiztosítás díját a teljes futamidő alatt az Adósnak kell fizetnie. A fogyasztó szabadon eldöntheti, hogy bármely magyarországi biztosítótársaságból választva mely biztosítótársaságnál köti meg a biztosításra vonatkozó szerződést.
A63: Kérjük, tájékozódjon az ehhez a hitelhez kapcsolódó minden egyéb illetékről és költségről.
A64: 4. A törlesztések gyakorisága és száma
A65: A törlesztések gyakorisága: havi
A66: A törlesztések száma: | E66: 240
A67: 5. Az egyes törlesztőrészletek összege
A68: 35129.5529
A69: Az itt feltüntetett törlesztőrészlet az első kamatperiódusra (5 év) érvényes. A havi törlesztőrészlet összege kamatperióduson belül változatlan összegű, kamatperiódusonként változó. Amennyiben a hitelkamat csökken, úgy a havi törlesztőrészlet is csökkenni fog, míg a hitelkamat növekedése a havi törlesztőrészlet összegének emelkedését eredményezi.
A70: E hitelnek a kamata változhat. Ez azt jelenti, hogy az Ön által fizetendő törlesztőrészletek összege nőhet vagy
A71: csökkenhet. Például amennyiben a kamat | I71: 0.2323 | K71: -ra emelkedne, az Ön által fizetendő részlet
A72: 99069.2497 | D72: -ra nőne.
A73: Az Ön jövedelme változhat. Kérjük, gondolja át, hogy a jövedelme csökkenése esetén is képes lesz-e törleszteni a havi részleteket.
A74: 6. Szemléltető törlesztési táblázat
A75: Ebben a táblázatban a havonta fizetendő összeg látható. A törlesztőrészletek (2. oszlop) a fizetendő kamat (3. oszlop), adott esetben a fizetendő tőke (4. oszlop) összegéből állnak. A fennmaradó tőke (5. oszlop) az egyes törlesztőrészletek után még törlesztendő hitelösszeg.
A76: A törlesztés ütemezése | E76: A törlesztőrészlet összege | I76: Törlesztőrészletenként fizetendő kamat | M76: Törlesztőrészletenként fizetendő tőke | Q76: Az egyes törlesztőrészletek után fennmaradó tőke
A77: 1 | E77: 35129.5529 | I77: 23995.3704 | M77: 11134.1825 | Q77: 4988865.817
A78: 2 | E78: 35129.5529 | I78: 23941.9366 | M78: 11187.6163 | Q78: 4977678.201
A79: 3 | E79: 35129.5529 | I79: 23888.2464 | M79: 11241.3065 | Q79: 4966436.895
A80: 4 | E80: 35129.5529 | I80: 23834.2985 | M80: 11295.2544 | Q80: 4955141.64
A81: 5 | E81: 35129.5529 | I81: 23780.0918 | M81: 11349.4611 | Q81: 4943792.179
A82: 6 | E82: 35129.5529 | I82: 23725.6249 | M82: 11403.928 | Q82: 4932388.251
A83: 7 | E83: 35129.5529 | I83: 23670.8966 | M83: 11458.6563 | Q83: 4920929.595
A84: 8 | E84: 35129.5529 | I84: 23615.9056 | M84: 11513.6473 | Q84: 4909415.947
A85: 9 | E85: 35129.5529 | I85: 23560.6508 | M85: 11568.9021 | Q85: 4897847.045
A86: 10 | E86: 35129.5529 | I86: 23505.1308 | M86: 11624.4221 | Q86: 4886222.623
A87: 11 | E87: 35129.5529 | I87: 23449.3443 | M87: 11680.2086 | Q87: 4874542.415
A88: 12 | E88: 35129.5529 | I88: 23393.2901 | M88: 11736.2628 | Q88: 4862806.152
A89: 1 | E89: 421554.6348 | I89: 284360.7868 | M89: 137193.848 | Q89: 4862806.152
A90: 2 | E90: 421554.635 | I90: 276248.0312 | M90: 145306.6037 | Q90: 4717499.548
A91: 3 | E91: 421554.635 | I91: 267655.5398 | M91: 153899.0951 | Q91: 4563600.453
A92: 4 | E92: 421554.635 | I92: 258554.9441 | M92: 162999.6908 | Q92: 4400600.762
A93: 5 | E93: 421554.635 | I93: 248916.1982 | M93: 172638.4368 | Q93: 4227962.325
A94: 6 | E94: 421554.635 | I94: 238707.4792 | M94: 182847.1558 | Q94: 4045115.17
A95: 7 | E95: 421554.635 | I95: 227895.0827 | M95: 193659.5523 | Q95: 3851455.617
A96: 8 | E96: 421554.635 | I96: 216443.3111 | M96: 205111.3239 | Q96: 3646344.293
A97: 9 | E97: 421554.635 | I97: 204314.3559 | M97: 217240.2791 | Q97: 3429104.014
A98: 10 | E98: 421554.635 | I98: 191468.1728 | M98: 230086.4621 | Q98: 3199017.552
A99: 11 | E99: 421554.635 | I99: 177862.3497 | M99: 243692.2852 | Q99: 2955325.267
A100: 12 | E100: 421554.635 | I100: 163451.9664 | M100: 258102.6686 | Q100: 2697222.598
A101: 13 | E101: 421554.635 | I101: 148189.4463 | M101: 273365.1887 | Q101: 2423857.41
A102: 14 | E102: 421554.635 | I102: 132024.3996 | M102: 289530.2354 | Q102: 2134327.174
A103: 15 | E103: 421554.635 | I103: 114903.4568 | M103: 306651.1782 | Q103: 1827675.996
A104: 16 | E104: 421554.635 | I104: 96770.09225 | M104: 324784.5427 | Q104: 1502891.454
A105: 17 | E105: 421554.635 | I105: 77564.43801 | M105: 343990.1969 | Q105: 1158901.257
A106: 18 | E106: 421554.635 | I106: 57223.08578 | M106: 364331.5492 | Q106: 794569.7074
A107: 19 | E107: 421554.635 | I107: 35678.87773 | M107: 385875.7572 | Q107: 408693.9502
A108: 20 | E108: 421554.635 | I108: 12860.68475 | M108: 408693.9502 | Q108: 0
A109: 21
A110: 22
A111: 23
A112: 24
A113: 25
A114: 26
A115: 27
A116: 28
A117: 29
A118: 30
A119: Mindösszesen | E119: 8431092.699 | I119: 3431092.699 | M119: 5000000
A122: A táblázat az aktuális kondíciók figyelembe vételével készült, ezért az ismert összegeket vizuálisan megkülönböztetjük a feltételezettektől. A feltételezett adatokat dőlt betűvel tüntettük fel.
A123: A Bank minden referencia-kamatláb / kamatperiódus fordulónapján törlesztési táblázat megküldésével tájékoztatást küld a fogyasztó részére díj, és költségmentesen.
A124: A hitel kamatlába a hitel futamideje alatt változhat, a kezdeti hitelkamatláb az első kamatperiódusra (5 év) érvényes.
A125: Kérjük, vegye figyelembe, hogy a táblázat csak szemléltetésre szolgál, és a jelzálogkölcsön változó kamatozású (kamatperióduson belül fix), ebből fakadóan a táblázatban közölt értékek változhatnak.
A126: 7. További kötelezettségek
A127: A fogyasztónak a következő kötelezettségeket kell teljesítenie ahhoz, hogy az ebben a dokumentumban ismertetett feltételekkel juthasson hitelhez:
A128: Tekintettel arra, hogy a kölcsön törlesztése csak MagNet Banknál vezetett fizetési számláról történhet, ezért Önnek legalább korlátozott rendeltetésű bankszámlával a hitelszerződés teljes időtartama alatt rendelkeznie kell, amelyet a Bank díj, és költségmentesen biztosít az Ön részére. Kérjük, vegye figyelembe, hogy erről a korlátozott rendeltetésű fizetési számláról kizárólag a kölcsön törlesztése történhet, egyéb megbízás nem adható a bankszámla terhére, és nem kapcsolódhat hozzá kiegészítő szolgáltatás, úgy mint bankkártya, NetBank stb.
A129: Amennyiben Ön a MagNet Bank pénzforgalmi szolgáltatásait is igénybe kívánja venni, úgy a Banknál lakossági bankszámlát (fizetési számlát) nyithat, és ebben az esetben erről a számláról történik a kölcsön törlesztése.
A130: Kamatfelár-kedvezmény esetén az alábbi feltételeket kell vállalnia:
A131: Tekintettel arra a vállalására, hogy a kölcsön teljes futamideje alatt a kölcsön törlesztésére szolgáló fizetési számlán havi rendszerességgel jóváírást teljesít, a Bank kedvezményes hitelkamatot állapított meg a Hirdetményben foglaltak szerint. Ezzel kapcsolatosan az alábbi feltételeket kell teljesítenie:
B132: • A jóváírás átutalással, a kölcsön törlesztésére szolgáló MagNet fizetési számlára (bankszámlára) érkezik a hitel teljes futamideje alatt (amelybe a bankon belüli saját számlák közötti átvezetések, és MagNet Bank hitelezésével összefüggő jóváírások nem számítanak bele). • Havi jóváírásokat naptári hónapokként kell teljesíteni. • Legfeljebb havi kettő jóváírás együttes összegének kell elérni vagy meghaladni a választott kedvezmény kategória szerinti minimum összeget. • A vállalt feltételek teljesítésének ellenőrzése 6 havonta történik. A kedvezmény igénybevételéhez a feltétel vizsgálat időpontját megelőző 6 hónapban legalább 4 alkalommal teljesíteni kell jóváírást. • Amennyiben a jóváírás nem felel meg a fenti feltételeknek, úgy a Bank a kedvezményt visszavonja és a kölcsön ügyleti kamata megemelkedik a kedvezmény nélküli mértékre (a 100 000 forintot el nem érő jóváíráshoz tartozó kategória szerinti kamat). • A feltétel ezt követően történő újbóli teljesülése esetén (a fentiek szerint) a teljesítést követő esedékességkor a kedvezmény ismételten megadásra kerül.
A133: „Közösségi Ügyfél" kedvezmény feltételei:
B134: A „Közösségi ügyfél” Kedvezmény igénybe vételéhez az alábbi feltételek közül legalább az egyik teljesítését vállalja az Adós:
B135: • az Adós Közösségi Hatása legalább 65% vagy
B136: • az Adós az érintett jelzáloghitel ügylettel csatlakozik a Mentor-Szféra Plusz Programhoz.
A137: Közösségi hatás egy összevont mutatószám, amely megmutatja, hogy az ügyfél milyen mértékben rendelkezik a Bank közösségi termékeivel illetve használja-e azokat (Segítő bankkártya, Közösségi betét), fizet-e becsületkasszás számlavezetési díjat, valamint részt vesz-e a Bank Közösségi Adományozási Programjában (KAP). A Közösségi hatásról részletesen és a mutató mindenkori értékéről a NetBankon keresztül tájékozódhat.
A138: A Bank jogosult a Kedvezmény feltételeit a hitel teljes futamideje alatt ellenőrizni, és amennyiben a Kedvezmény feltétele nem teljesül, a Bank jogosult a következő törlesztési esedékességtől a hátralévő teljes futamidőre a Kedvezményt megvonni.
A139: Felhívjuk figyelmét, hogy az ebben a dokumentumban ismertetett hitelfeltételek (a kamatlábat is beleértve) változhatnak, azaz a kamatfelár-kedvezmény/kamatkedvezmény megszűnhet, amennyiben Ön nem tesz eleget a kamatfelár- kedvezmény/kamatkedvezmény alapjául szolgáló feltételekhez kapcsolódó kötelezettségeknek.
A145: Egyéni vagyonbiztosítás: A Bank előírhatja a kölcsön fedezetéül szolgáló ingatlan(ok)ra egyéni vagyonbiztosítás meglétét. Ebben az esetben a vagyonbiztosítást a fedezeti ingatlanokra legalább tűz- és elemi kár kockázatokra kiterjedően kell megkötni és a biztosítási összeg minimálisan az ingatlan telekár nélkül számított forgalmi értékével, és legalább a kölcsön összegével kell, hogy megegyezzen. A megkötött vagyonbiztosítást a kölcsön és járulékai erejéig a Bank javára szóló hitelbiztosítéki záradékkal kell ellátni, és a kölcsön teljes futamideje alatt fent kell tartani. A biztosítási díj az Ön által választott biztosítótársaság díjszabásától függ.
A146: Csoportos vagyonbiztosítás: A használatbavételi engedéllyel rendelkező fedezeti lakóingatlan a Bank által megkötött, csoportos vagyonbiztosítással rendelkezik, amelynek szerződője és kedvezményezettje a Bank. Azonban ha az ingatlan helyreállítható, akkor a biztosítási összeg erre használható fel. A csoportos vagyonbiztosítási fedezetbe való bevonás díjmentes, a Bank minden esetben átvállalja a biztosítás díját.
A147: Hitelfedezeti (kockázati) életbiztosítás: A Bank egyéni döntésben előírhatja az Adós személyére a hitelfedezeti (kockázati) életbiztosítás megkötését. A biztosításnak az Adós bármely okú (betegségből, balesetből) eredő elhalálozása esetén is biztosítási szolgáltatást kell nyújtania. A biztosítási összegnek el kell érnie a szerződött kölcsönösszeget, továbbá a biztosítást a szerződés teljes futamideje alatt fent kell tartani. A biztosítási díj az Ön által választott biztosítótársaság díjszabásától függ.
A148: Felhívjuk figyelmét, hogy ha később eláll a hitelhez kapcsolódó bármely kapcsolódó szolgáltatás igénybevételétől, azaz megszünteti Bank által vezetett fizetési számláját, a vagyonbiztosítását, vagy adott esetben életbiztosítását, az a kölcsönszerződés felmondását eredményezheti.
A149: 8. Előtörlesztés
A150: Ön jogosult a hitel részleges vagy teljes előtörlesztésére. Az előtörlesztés tervezett napja előtt legalább 15 banki munkanappal megelőzően írásban, az erre szolgáló nyomtatvány kitöltésével kell jeleznie a Bank felé előtörlesztési szándékát. Az előtörlesztés elszámolása – függetlenül az utalás napjától – csak a törlesztésre megjelölt napon történhet. Jelzáloghitel-szerződések előtörlesztése esetén a Bank jogosult az előtörlesztéshez közvetlenül kapcsolódó, esetlegesen felmerült, méltányos költségeinek megtérítésére. Az előtörlesztés költsége az előtörlesztett összeg 1 százaléka. A Bank nem számítja fel az előtörlesztés költségét a kölcsön biztosítékául szolgáló hitelfedezeti életbiztosításból, vagy vagyonbiztosításból, vagy lakás-takarékpénztári megtakarításból teljesített teljes vagy részleges előtörlesztés esetén.
A151: 9. Rugalmas elemek
A152: Önnek lehetősége van ezt a hitelt más ingatlanra átvinni, azaz fedezetet cserélni. A fedezetcsere minden esetben szerződésmódosítással jár és csak abban az esetben lehetséges, ha a felajánlott újabb ingatlan megfelel a Bank által az ingatlannal szemben támasztott követelményeknek, továbbá biztosítja a hitel megfelelő fedezettségét. A fedezetcsere engedélyezéséről a Bank minden esetben egyedileg dönt. Fedezetcsere esetén a mindenkor hatályos Hirdetmény szerinti értékbecslési költséget az értékbecslőnek és szerződésmódosítási díjat a Bank felé kell megfizetnie, illetve a szerződésmódosítás közjegyzői okiratba foglalását is előírja a Bank. A mindenkori közjegyzői díjszabás szerinti közjegyzői díjat a közjegyző felé kell megfizetnie. Ezeken túlmenően számolnia kell az ingatlan-nyilvántartás eljárás igazgatás szolgáltatási díjaival, úgy mint önálló zálogjog bejegyzésének díja, tulajdoni lap másolat díja. Önnek nincs lehetősége ezt a hitelt más hitelezőhöz átvinni.
A153: 10. A fogyasztó egyéb jogai
A154: 15 nap gondolkodási idő áll a rendelkezésére a hitel felvételéről szóló döntéshez. Miután kézhez kapta a hitelszerződés tervezetét a Banktól, csak 3 nap eltelte után fogadhatja el az ajánlatot.
A155: 11. Panaszok
A156: Amennyiben panasza van, kérjük, vegye fel a kapcsolatot. Postai úton: MagNet Bank Zrt. Call Center Osztály (Minőségbiztosítás) 1376 Budapest, 62., Pf.: 86. Telefax: 06-1-428-8889 Telefonszám: 06-1-428-8888 E-mail cím: info@magnetbank.hu Amennyiben a panasza helyben nem rendeződik az Ön számára kielégítően, a következő szervezetekhez is fordulhat: Magyar Nemzeti Bank, Pénzügyi Békéltető Testület, vagy kapcsolatba léphet a FIN-NET hálózattal, amelytől elkérheti az Ön országában ezzel egyenértékű szerv adatait.
A157: 12. A hitelhez kapcsolódó kötelezettségeknek való nem megfelelés következményei a fogyasztóra nézve
A158: A kamatkedvezményre jogosító feltételek nem teljesítése esetén: A Bank jogosult a kamatfelár kedvezmény / kamatkedvezmény feltételeit a hitel teljes futamideje alatt ellenőrizni, és amennyiben a kedvezmény feltétele nem teljesül, a Bank jogosult az Önnek írt erről szóló értesítése keltét követő első törlesztési esedékességtől a hátralévő teljes futamidőre a kamatfelár kedvezményt / kamatkedvezményt megvonni.
A159: A kölcsönszerződés alapján fennálló tartozás nem fizetése esetén: Amennyiben Ön nem tudja kölcsönszerződésnek megfelelően teljesíteni a fizetési kötelezettségét, vállalnia kell a hátralékos tartozás miatt felszámításra kerülő költségeket, valamint a hátralékhoz kapcsolódó esetleges eseményeket, melyek az alábbiak lehetnek: • késedelmi kamat felszámítása A Bank az egyes törlesztő részletek késedelmes teljesítése esetén (mind a meg nem fizetett tőketartozás után, mind a meg nem fizetett ügyleti kamat után), azok esedékessé válásától számítottan az ügyleti kamaton felül a késedelem időtartamára késedelmi kamatot is jogosult felszámítani. • fizetési felszólítások a hátralékossági szint mértékétől függően: (sms, telefon, levél, személyes megkeresés), ezek után az alábbi - nem szerződésszerű teljesítéshez kapcsolódó - díjak kerülnek felszámításra: késedelem miatti SMS felszólítás díja, késedelem miatti felszólító levél díja, és késedelem miatti személyes megkeresés díja, amelyek mértékét és esedékességét a Hirdetmény tartalmazza. • hátralékos tartozás adatainak rögzítése a Központi Hitel Információs (KHR) rendszerben Amennyiben a lejárt és meg nem fizetett tartozás mértéke meghaladja a késedelembe esés időpontjában érvényes legkisebb összegű havi minimálbér összegét és ezen minimálbérösszeget meghaladó fizetési késedelem folyamatosan meghaladja a 90 napot, a Bank - a központi hitelinformációs rendszerről szóló 2011. évi CXXII. törvény alapján - az Adós adatait haladéktalanul továbbítja a Központi Hitelinformációs Rendszer (KHR) üzemeltetője (BISz Zrt.) felé.
A160: • felmondás Azokban az esetekben, amikor Banknak nem sikerül az Adóssal együttműködnie (az Adós nem mutat fizetési hajlandóságot, nem veszi fel a kapcsolatot a Bankkal), úgy a Bank nem tud lehetőséget adni áthidaló megoldás biztosítására, fizetéskönnyítésre, szerződésmódosításra. Így kerülhet sor a követelés jogi úton történő érvényesítésére. A fizetési felszólítás kézhezvételét követően, amennyiben az abban meghatározott teljesítési határidőig a lejárt tartozás nem kerül megfizetésre, együttműködési és fizetési hajlandóság hiányában a kölcsönszerződés felmondásra kerülhet. A felmondás következtében a követelés egyösszegben esedékessé válik. • végrehajtási eljárás indítása A kölcsönszerződés felmondása után végrehajtási eljárás indul, melynek keretében a fedezetként bevont ingatlan értékesítésre kerülhet. Amennyiben a biztosítéki ingatlan értékesítéséből befolyt összeg nem fedezi a hitel teljes tartozását, további fizetési kötelezettsége maradhat fenn.
A161: Egyéni vagyonbiztosítással és adott esetben életbiztosítással kapcsolatos kötelezettségek megszegése esetén: Ha Ön nem fizeti meg, vagy csak részben fizeti meg a kölcsönszerződés alapján a Bank által adott esetben előírt egyéni vagyonbiztosítás vagy adott esetben az életbiztosítás díját, vagy e biztosítási szerződések valamely lényeges elemét (pl. kockázati kör, biztosítási összeg) a Bank számára hátrányos módon megváltoztatja, a Bank felmondhatja a kölcsönszerződését. Amennyiben nehézségei támadnak a havi törlesztőrészletek fizetésével kapcsolatban, kérjük, mielőbb keressen meg minket, hogy megfelelő megoldást találjunk a problémára. A részletfizetések elmaradása esetén otthona végső esetben végrehajtás alá kerülhet.
A162: 13. További tájékoztatás
A163: Tájékoztatjuk, hogy kölcsön jóváhagyását követően, de még a kölcsönszerződés megkötése előtt – legalább 3 nappal - a Bank az Ön rendelkezésére bocsátja a kölcsönszerződés tervezetét a kölcsönkérelmi nyomtatványon Ön által megjelölt átvételi módon.
A164: 14. Felügyelet
A165: A hitelező a Magyar Nemzeti Bank, http://www.mnb.hu/ felügyelet alá tartozik.
A167: Alulírott igazolom, hogy a kérelem tárgyát képező hiteltermékkel kapcsolatban a 2009. évi CLXII. törvény szerint tájékoztatást teljes körűen megkaptam és jelen tájékoztatás egy példányát a szerződéskötést megelőzően átvettem és megismertem.
A168: Név:
A169: Lakcím:
A170: Személyi igazolvány:
A172: Kelt: Budapest, 2019.05.31
L175: Aláírás

Sheet IndikatívOTK (hidden)
A1: Bevezető szöveg
A2: Ez a dokumentum
A3: Ez a dokumentum az Ön által ezidáig megadott adatok és a jelenlegi pénzügyi piaci feltételek alapján készült.
A4: Az alábbi tájékoztatás
A5: Ezt követően a piaci feltételek függvényében változhat.
A6: Ez a dokumentum nem kötelezi MagNet Bank Zrt.-t arra, hogy hitelt nyújtson Önnek.
A7: 1. Hitelező
A8: Hitelező neve: MagNet Magyar Közösségi Bank Zrt.
A9: Telefonszám: 06-1-428-8888
A10: Levelezési cím: 1376 Budapest 62. Pf. 86.
A11: E-mail cím: info@magnetbank.hu
A12: Internetcím: www.magnetbank.hu
A13: 2. A hitel fő jellemzői
A14: A hitel összege: | I14: A hitel devizaneme: HUF (magyar forint)
A15: A hitel futamideje:
A16: A hitel típusa: | E16: MagNet CSOK + Lakáshitel
A17: A kölcsön visszafizetése annuitásos módon történik. Az annuitásos törlesztőrészlet az otthonteremtési kamattámogatással csökkentett mértékű ügyleti kamatláb (nettó kamatláb) alapul vételével kerül meghatározásra. A szerződésszerű teljesítés esetén, az Adós a nettó kamatlábbal kiszámolt annuitásos - a teljes futamidő alatt azonos összegű - törlesztőrészletet köteles fizetni. Az annuitásos törlesztőrészlet hitelkamatot és tőkét is tartalmaz, azonban a havonta fizetendő részletben eltérő a kamat és a tőke aránya. A törlesztőrészleten belül - változatlan ügyleti kamatlábat feltételezve - a futamidő elején magasabb a kamat, később pedig a tőke aránya.
A18: A Bank a hitel kamatát a 16/2016. (II.10.) és a 17/2016 (II.10) Korm. Rendeletek által rögzített állampapír referencia hozamhoz kötötten határozza meg a kölcsön teljes futamideje alatt, amely megegyezik a kamattámogatás időtartamával. Kamatperiódus: 5 év Ügyleti kamat mértéke = az ÁKK Zrt. által havi rendszerességgel közzétett (www.akk.hu), a közzétételt megelőző három naptári hónapban tartott 5 éves névleges futamidejű államkötvény aukcióin kialakult átlaghozamok adott aukciókon elfogadott mennyiségekkel súlyozott számtani átlaga 130 százalékának 3 százalékponttal növelt mértéke.
A19: Ügyleti kamat mértéke:
A20: Kamattámogatás mértéke: az ügyleti kamat fentiek szerint meghatározott mértékének 3 százalékponttal csökkentett mértéke (5 éves ÁKKH 130%-a).
A21: Kamattámogatás mértéke:
A22: A támogatott személy a támogatás időszakában kamattámogatással csökkentett mértékű ügyleti kamatot fizet. Ügyfél által fizetendő kamat: fix 3%. Lejárt tőketartozás esetén kamattámogatás nem vehető igénybe. Lejárt tőketartozás: a kölcsönszerződés felmondása miatt esedékessé vált tőketartozás, valamint a fel nem mondott kölcsönszerződésből eredő lejárt tőketartozás, amelynek törlesztési késedelme a 30 napot meghaladja. A Bank a kölcsön ügyleti kamatának egyoldalú módosítására nem jogosult. A Bank által - a kamatperiódus fordulónapján érvényes referenciahozam alapján - érvényesített ügyleti kamat módosítása nem minősül egyoldalú kamatemelésnek.
A23: Az Ön által fizetendő teljes összeg:
A24: Ez azt jelenti, hogy | H24: -ért, amelyet hitelként felvesz, | P24: -ot kell visszafizetnie.
A25: Felhívjuk szíves figyelmét, a kölcsön biztosítéka minden esetben magánszemély tulajdonában álló, Magyarország területén fekvő, önállóan forgalomképes ingatlanon alapított önálló zálogjog.
A26: Ennek a tájékoztatásnak az elkészítéséhez az ingatlan értékét | O26: -nak tekintettük.
A27: A maximálisan igénybe vehető hitelösszeg az ingatlan forgalmi értékének 80%-a lehet, amely azt jelenti, hogy az igénybe vehető hitel
A28: maximális összege a biztosíték értéke alapján:
A29: Kérem, vegye figyelembe, hogy ennél a terméknél a maximális kölcsönösszeg 15 000 000 Ft lehet.
A30: Az ingatlan értékét a Bank által elfogadott külső értékbecslő vállalkozás állapítja meg, és az értékbecslő által megállapított ingatlanérték eltérhet az ingatlan fent megadott értékétől.
A31: 3. Kamat és egyéb költségek
A32: A teljes hiteldíj mutató (THM) a hitel teljes éves díját mutatja meg százalékban kifejezve. A THM a különböző ajánlatok összehasonlítását szolgálja.
A33: Az Ön hitelére érvényes THM
A34: Tájékoztatjuk, hogy a bemutatott THM azzal a feltételezéssel került kiszámításra, hogy Ön a kölcsönszerződésnek megfelelően teljesíti a szerződésben vállalt kötelezettségeit, így kamattámogatásra jogosult a teljes futamidő során, ebből következően az Ön által fizetendő hitelkamat a kölcsönszerződés teljes időtartama alatt rögzített szinten marad.
A35: A feltüntetett THM meghatározása az aktuális feltételek, illetve a hatályos jogszabályok figyelembevételével történt. A feltételek változása esetén a THM mértéke módosulhat. A THM-mutató értéke nem tükrözi a változó kamatozású hitelek kamatkockázatát. A hitel felvételéhez a fedezetül bevont ingatlanra vonatkozóan egyéni vagyonbiztosítás megkötése, vagy megléte szükséges lehet.
A36: A THM az alábbiakat tartalmazza:
A37: Kamatláb
A38: Ügyfél által fizetendő kamat (évi): 3%
A40: A THM egyéb összetevői:
A41: Egyszer fizetendő díjak, költségek:
B42: Folyósítási díj:
B43: Egyszeri díj, mely a kölcsön folyósításakor, a folyósított kölcsönösszeg után fizetendő.
B44: Értékbecslés költsége:
B45: A helyszíni szemle során esedékes, és közvetlenül az értékbecslőnek fizetendő. Abban az esetben sem jár vissza, ha az igénylés nem kerül jóváhagyásra.
B46: Helyszíni szemle költsége:
B47: Folyósítást megelőzően annak ellenőrzése, hogy az ingatlan műszaki állapotára tekintettel a lakhatási igények kielégítésére alkalmas (amennyiben a megvásárolni kívánt lakás a kérelem benyújtásának időpontjában nem rendelkezik használatbavételi engedéllyel).
B48: Takarnetről lekért, vagy a Földhivatal által kiállított hiteles tulajdoni lap másolatok díja:
B49: Térképmásolat TAKARNET-en keresztüli lekérdezésének költsége:
B50: Fedezettel kapcsolatos ügyintézés költsége: | Q50: 0
B51: Ingatlanonként fizetendő fix díj, ha a biztosítéki jogok bejegyzéséről a Bank intézkedik.
B52: Az önálló zálogjog bejegyzéséért díjat kell fizetnie. Díj összege: 12 600 Ft. (Az önálló zálogjog ingatlan-nyilvántartásban történő bejegyzése, valamint a bejegyzés módosítása iránti eljárás jogszabályban meghatározott díja.)
A53: Rendszeresen fizetendő költségek:
B54: Rendelkezésre tartási díj (kizárólag új lakás vásárlás esetén): évi 0,50%
B55: A kölcsönszerződésben meghatározott, de még ki nem folyósított kölcsön(rész) után a rendelkezésre tartási időszakban fizetendő díj.
A56: Az alábbi költségek nem ismertek a hitelező számára, és így azokat a THM nem foglalja magában:
B57: Egyéni vagyonbiztosítás díja: A Bank döntésben előírhatja a kölcsön fedezetéül szolgáló ingatlan(ok)ra az egyéni vagyonbiztosítás meglétét. Ebben az esetben a biztosítást, a teljes futamidő alatt fent kell tartani! Az ingatlanra megkötött egyéni vagyonbiztosítás után fizetendő biztosítási díjat a biztosítók egyedi díjszabásuk szerint határozzák meg. A fogyasztó szabadon eldöntheti, hogy bármely magyarországi biztosítótársaságból választva mely biztosítótársaságnál köti meg a biztosításra vonatkozó szerződést.
B58: Hitelfedezeti (kockázati) életbiztosítás díja: A Bank előírhatja az Adós személyére a hitelfedezeti (kockázati) életbiztosítás megkötését. Az életbiztosítás díját a teljes futamidő alatt az Adósnak kell fizetnie. A fogyasztó szabadon eldöntheti, hogy bármely magyarországi biztosítótársaságból választva mely biztosítótársaságnál köti meg a biztosításra vonatkozó szerződést.
A59: Kérjük, tájékozódjon az ehhez a hitelhez kapcsolódó minden egyéb illetékről és költségről.
A60: 4. A törlesztések gyakorisága és száma
A61: A törlesztések gyakorisága: havi
A62: A törlesztések száma: | H62: (folyósítás időpontjától függően a törlesztések száma csökkenhet)
A63: 5. Az egyes törlesztőrészletek összege
A65: Az itt feltüntetett törlesztőrészlet mindaddig érvényes, amíg Ön a kölcsönszerződésnek megfelelően teljesíti a szerződésben vállalt kötelezettségeit. Szerződésszerű teljesítés esetén a törlesztőrészlet összege a teljes futamidő alatt változatlan összegű. Kérem vegye figyelembe, hogy lejárt tőketartozás esetén kamattámogatásra nem jogosult, és ebben az esetben a kamattámogatás nélküli hitelkamatot köteles fizetni. Az Ön jövedelme változhat. Kérjük, gondolja át, hogy a jövedelme csökkenése esetén is képes lesz-e törleszteni a havi részleteket.
A67: 6. Szemléltető törlesztési táblázat
A68: Ebben a táblázatban a havonta fizetendő összeg látható. Az Adós által fizetendő törlesztőrészletek (A oszlop) az adós által fizetendő kamat (D oszlop), és a fizetendő tőke (E oszlop) összegéből állnak. Szerződésszerű teljesítés esetén a jelzáloghitelhez kamattámogatás kapcsolódik (B oszlop). Abban az esetben ha az Adós kamattámogatásra nem jogosult, úgy az Adós által fizetendő törlesztőrészlet és kamattámogatás együttes összegét kell megfizetnie az Adósnak, amelyet a C oszlop tartalmaz. A fennmaradó tőke (F oszlop) az egyes törlesztőrészletek után még törlesztendő hitelösszeg.
A69: A törlesztés ütemezése | D69: Adós által fiz. törlesztőrészlet összege (A) = (D) + (E ) | G69: Kamat-támogatás összege (B) | I69: Törlesztőrészlet (adós által fiz. trészlet + kamattám. összege) (C)= (A)+(B) | L69: Törlesztő-részletenként fizetendő kamat (adós) (D) | O69: Törlesztő-részletenként fizetendő tőke (adós) (E ) | Q69: Az egyes törlesztőrészletek után fennmaradó tőke (F)
A70: 1
A71: 2
A72: 3
A73: 4
A74: 5
A75: 6
A76: 7
A77: 8
A78: 9
A79: 10
A80: 11
A81: 12
A82: 1
A83: 2
A84: 3
A85: 4
A86: 5
A87: 6
A88: 7
A89: 8
A90: 9
A91: 10
A92: 11
A93: 12
A94: 13
A95: 14
A96: 15
A97: 16
A98: 17
A99: 18
A100: 19
A101: 20
A102: 21
A103: 22
A104: 23
A105: 24
A106: 25
A107: 26
A108: 27
A109: 28
A110: 29
A111: 30
A112: Mindösszesen
A115: A táblázat az aktuális kondíciók figyelembe vételével készült, ezért az ismert összegeket vizuálisan megkülönböztetjük a feltételezettektől. A feltételezett adatokat dőlt betűvel tüntettük fel.
A116: A Bank minden ügyleti év fordulónapján törlesztési táblázat megküldésével tájékoztatást küld a fogyasztó részére díj, és költségmentesen. A Bank az éves egyenlegértesítő megküldésével tájékoztatja a fogyasztót az igénybe vett kamattámogatás összegéről.
A117: A hitel kamatlába a hitel futamideje alatt változhat, az ügyleti kamatláb az első kamatperiódusra (5 év) érvényes.
A118: Kérjük, vegye figyelembe, hogy a táblázat csak szemléltetésre szolgál, és a jelzálogkölcsön változó kamatozású (kamatperióduson belül fix), ebből fakadóan a táblázatban közölt értékek változhatnak.
A119: 7. További kötelezettségek
A120: A fogyasztónak a következő kötelezettségeket kell teljesítenie ahhoz, hogy az ebben a dokumentumban ismertetett feltételekkel juthasson hitelhez:
A121: A fogyasztónak és a kölcsönnek meg kell felelnie a 16/2016. (II.10.). Korm. Rendelet / 17/2016 (II.10) Korm. Rendelet szerinti feltételeknek.
A122: Tekintettel arra, hogy a kölcsön törlesztése csak MagNet Banknál vezetett fizetési számláról történhet, ezért Önnek legalább korlátozott rendeltetésű bankszámlával a hitelszerződés teljes időtartama alatt rendelkeznie kell, amelyet a Bank díj, és költségmentesen biztosít az Ön részére. Kérjük, vegye figyelembe, hogy erről a korlátozott rendeltetésű fizetési számláról kizárólag a kölcsön törlesztése történhet, egyéb megbízás nem adható a bankszámla terhére, és nem kapcsolódhat hozzá kiegészítő szolgáltatás, úgy mint bankkártya, NetBank stb.
A123: Amennyiben Ön a MagNet Bank pénzforgalmi szolgáltatásait is igénybe kívánja venni, úgy a Banknál lakossági bankszámlát (fizetési számlát) nyithat, és ebben az esetben erről a számláról történik a kölcsön törlesztése.
A124: Egyéni vagyonbiztosítás: A Bank előírhatja a kölcsön fedezetéül szolgáló ingatlan(ok)ra egyéni vagyonbiztosítás meglétét. Ebben az esetben a vagyonbiztosítást a fedezeti ingatlanokra legalább tűz- és elemi kár kockázatokra kiterjedően kell megkötni és a biztosítási összeg minimálisan az ingatlan telekár nélkül számított forgalmi értékével, és legalább a kölcsön összegével kell, hogy megegyezzen. A megkötött vagyonbiztosítást a kölcsön és járulékai erejéig a Bank javára szóló hitelbiztosítéki záradékkal kell ellátni, és a kölcsön teljes futamideje alatt fent kell tartani. A biztosítási díj az Ön által választott biztosítótársaság díjszabásától függ.
A125: Csoportos vagyonbiztosítás: A használatbavételi engedéllyel rendelkező fedezeti lakóingatlan a Bank által, csoportos vagyonbiztosítással rendelkezik, amelynek szerződője és kedvezményezettje a Bank. A csoportos vagyonbiztosítási fedezetbe való bevonás díjmentes, a Bank minden esetben átvállalja a biztosítás díját. Ennek megléte azonban nem érinti az Adós azon kötelezettségét, hogy a kölcsönszerződés fennállásáig, kizárólag a Bank javára szóló hitelbiztosítéki záradékkal ellátott, egyéni vagyonbiztosítással kell rendelkeznie.
A126: Hitelfedezeti (kockázati) életbiztosítás: A Bank egyéni döntésben előírhatja az Adós személyére a hitelfedezeti (kockázati) életbiztosítás megkötését. A biztosításnak az Adós bármely okú (betegségből, balesetből) eredő elhalálozása esetén is biztosítási szolgáltatást kell nyújtania. A biztosítási összegnek el kell érnie a szerződött kölcsönösszeget, továbbá a biztosítást a szerződés teljes futamideje alatt fent kell tartani. A biztosítási díj az Ön által választott biztosítótársaság díjszabásától függ.
A127: Felhívjuk figyelmét, hogy ha később eláll a hitelhez kapcsolódó bármely kapcsolódó szolgáltatás igénybevételétől, azaz megszünteti Bank által vezetett fizetési számláját, a vagyonbiztosítását, vagy adott esetben életbiztosítását, az a kölcsönszerződés felmondását eredményezheti.
A128: 8. Előtörlesztés
A129: Ön jogosult a hitel részleges vagy teljes előtörlesztésére. Az előtörlesztés tervezett napja előtt legalább 15 banki munkanappal megelőzően írásban, az erre szolgáló nyomtatvány kitöltésével kell jeleznie a Bank felé előtörlesztési szándékát. Az előtörlesztés elszámolása – függetlenül az utalás napjától – csak a törlesztésre megjelölt napon történhet. Jelzáloghitel-szerződések előtörlesztése esetén a Bank jogosult az előtörlesztéshez közvetlenül kapcsolódó, esetlegesen felmerült, méltányos költségeinek megtérítésére. Az érvényesített költségek összege nem haladhatja meg a Bank pénzügyi veszteségét és mértéke nem haladhatja meg az előtörlesztett összeg 1,5 százalékát. Jelzáloglevéllel finanszírozott kölcsönszerződés esetén, ha az előtörlesztés olyan időszakra esik, amikor a jelzáloghitel kamata rögzített vagy változó kamatú és az előtörlesztésre a kamatperióduson belül kerül sor, az érvényesített költségek mértéke nem haladhatja meg az előtörlesztett összeg 2 százalékát. Nem illeti meg a Bankot a költségtérítés, ha a részleges vagy teljes előtörlesztés visszafizetési biztosítékként kötött biztosítási szerződés alapján történik.
A130: 9. Rugalmas elemek
A131: Önnek lehetősége van ezt a hitelt más ingatlanra átvinni, azaz fedezetet cserélni. A fedezetcserére abban az esetben van lehetőség, ha az megfelel a 16/2016. (II.10.) / 17/2016 (II.10) Korm. Rendeletben leírt feltételeknek. A fedezetcsere minden esetben szerződésmódosítással jár és csak abban az esetben lehetséges, ha a felajánlott újabb ingatlan megfelel a Bank által az ingatlannal szemben támasztott követelményeknek, továbbá biztosítja a hitel megfelelő fedezettségét. A fedezetcsere engedélyezéséről a Bank minden esetben egyedileg dönt. Fedezetcsere esetén a mindenkor hatályos Hirdetmény szerinti értékbecslési költséget az értékbecslőnek és szerződésmódosítási díjat a Bank felé kell megfizetnie, illetve a szerződésmódosítás közjegyzői okiratba foglalását is előírja a Bank. A mindenkori közjegyzői díjszabás szerinti közjegyzői díjat a közjegyző felé kell megfizetnie. Ezeken túlmenően számolnia kell az ingatlan-nyilvántartás eljárás igazgatás szolgáltatási díjaival, úgy mint az önálló zálogjog bejegyzésének díja, tulajdoni lap másolat díja. Önnek nincs lehetősége ezt a hitelt más hitelezőhöz átvinni.
A132: 10. A fogyasztó egyéb jogai
A133: 15 nap gondolkodási idő áll a rendelkezésére a hitel felvételéről szóló döntéshez. Miután kézhez kapta a hitelszerződés tervezetét a Banktól, csak 3 nap eltelte után fogadhatja el az ajánlatot.
A134: 11. Panaszok
A135: Amennyiben panasza van, kérjük, vegye fel a kapcsolatot. Postai úton: MagNet Bank Zrt. Call Center Osztály (Minőségbiztosítás) 1376 Budapest, 62., Pf.: 86. Telefax: 06-1-428-8889 Telefonszám: 06-1-428-8888 E-mail cím: info@magnetbank.hu
A136: Amennyiben a panasza helyben nem rendeződik az Ön számára kielégítően, a következő szervezetekhez is fordulhat: Magyar Nemzeti Bank, Pénzügyi Békéltető Testület, vagy kapcsolatba léphet a FIN-NET hálózattal, amelytől elkérheti az Ön országában ezzel egyenértékű szerv adatait.
A137: 12. A hitelhez kapcsolódó kötelezettségeknek való nem megfelelés következményei a fogyasztóra nézve
A138: Amennyiben a kölcsön folyósítása kölcsönkérelem benyújtását követő hat hónapon belül a támogatott személynek (adósnak) felróható okból nem kezdődik meg, úgy az adós az otthonteremtési kamattámogatásra való jogosultságát elveszti. A kölcsönszerződés alapján fennálló tartozás nem fizetése esetén: Amennyiben Ön nem tudja kölcsönszerződésnek megfelelően teljesíteni a fizetési kötelezettségét, vállalnia kell a hátralékos tartozás miatt felszámításra kerülő költségeket, valamint a hátralékhoz kapcsolódó esetleges eseményeket, melyek az alábbiak lehetnek: • kamattámogatásra való jogosultság elvesztése Lejárt tőketartozás esetén kamattámogatásra nem jogosult. Amennyiben lejárt tőketartozás áll fenn, a kamattámogatás nélküli havi törlesztőrészletet kell megfizetnie.
A139: • késedelmi kamat felszámítása A Bank az egyes törlesztő részletek késedelmes teljesítése esetén (mind a meg nem fizetett tőketartozás után, mind a meg nem fizetett ügyleti kamat után), azok esedékessé válásától számítottan az ügyleti kamaton felül a késedelem időtartamára késedelmi kamatot is jogosult felszámítani. • fizetési felszólítások a hátralékossági szint mértékétől függően: (sms, telefon, levél, személyes megkeresés), ezek után az alábbi - nem szerződésszerű teljesítéshez kapcsolódó - díjak kerülnek felszámításra: késedelem miatti SMS felszólítás díja, késedelem miatti felszólító levél díja, és késedelem miatti személyes megkeresés díja, amelyek mértékét és esedékességét a Hirdetmény tartalmazza. • hátralékos tartozás adatainak rögzítése a Központi Hitel Információs (KHR) rendszerben Amennyiben a lejárt és meg nem fizetett tartozás mértéke meghaladja a késedelembe esés időpontjában érvényes legkisebb összegű havi minimálbér összegét és ezen minimálbérösszeget meghaladó fizetési késedelem folyamatosan meghaladja a 90 napot, a Bank - a központi hitelinformációs rendszerről szóló 2011. évi CXXII. törvény alapján - az Adós adatait haladéktalanul továbbítja a Központi Hitelinformációs Rendszer (KHR) üzemeltetője (BISz Zrt.) felé.
A140: • felmondás Azokban az esetekben, amikor Banknak nem sikerül az Adóssal együttműködnie (az Adós nem mutat fizetési hajlandóságot, nem veszi fel a kapcsolatot a Bankkal), úgy a Bank nem tud lehetőséget adni áthidaló megoldás biztosítására, fizetéskönnyítésre, szerződésmódosításra. Így kerülhet sor a követelés jogi úton történő érvényesítésére. A fizetési felszólítás kézhezvételét követően, amennyiben az abban meghatározott teljesítési határidőig a lejárt tartozás nem kerül megfizetésre, együttműködési és fizetési hajlandóság hiányában a kölcsönszerződés felmondásra kerülhet. A felmondás következtében a követelés egyösszegben esedékessé válik. • végrehajtási eljárás indítása A kölcsönszerződés felmondása után végrehajtási eljárás indul, melynek keretében a fedezetként bevont ingatlan értékesítésre kerülhet. Amennyiben a biztosítéki ingatlan értékesítéséből befolyt összeg nem fedezi a hitel teljes tartozását, további fizetési kötelezettsége maradhat fenn.
A141: Kamattámogatás jogosulatlan igénybe vétele: Ha a járási hivatal vagy állami adóhatóság vizsgálata során azt állapítja meg, hogy az otthonteremtési kamattámogatás igénybevétele jogosulatlan, vagy a támogatott személy nem a tőle elvárható gondossággal járt el, és ezáltal érdekkörében felmerült ok miatt az igénybevétel szabálytalan, akkor a támogatott személy köteles a jogosulatlanul igénybe vett otthonteremtési kamattámogatás az igénybevétel napjától számított, a Ptk. szerinti késedelmi kamattal növelt összegét visszatéríteni.
A142: Egyéni vagyonbiztosítással és adott esetben életbiztosítással kapcsolatos kötelezettségek megszegése esetén: Ha Ön nem fizeti meg, vagy csak részben fizeti meg a kölcsönszerződés alapján a Bank által előírt egyéni vagyonbiztosítás vagy adott esetben az életbiztosítás díját, vagy e biztosítási szerződések valamely lényeges elemét (pl. kockázati kör, biztosítási összeg) a Bank számára hátrányos módon megváltoztatja, a Bank felmondhatja a kölcsönszerződését.
A143: Amennyiben nehézségei támadnak a havi törlesztőrészletek fizetésével kapcsolatban, kérjük, mielőbb keressen meg minket, hogy megfelelő megoldást találjunk a problémára. A részletfizetések elmaradása esetén otthona végső esetben végrehajtás alá kerülhet.
A144: 13. További tájékoztatás
A145: Tájékoztatjuk, hogy kölcsön jóváhagyását követően, de még a kölcsönszerződés megkötése előtt – legalább 3 nappal - a Bank az Ön rendelkezésére bocsátja a kölcsönszerződés tervezetét a kölcsönkérelmi nyomtatványon Ön által megjelölt átvételi módon.
A146: 14. Felügyelet
A147: A hitelező a Magyar Nemzeti Bank, http://www.mnb.hu/ felügyelet alá tartozik.
A149: Alulírott igazolom, hogy a kérelem tárgyát képező hiteltermékkel kapcsolatban a 2009. évi CLXII. törvény szerint tájékoztatást teljes körűen megkaptam és jelen tájékoztatás egy példányát a szerződéskötést megelőzően átvettem és megismertem.
L157: Aláírás

Sheet Induló lap (hidden)
O17: 2020-03-07
